Workbook

Sheet Instructions
A1: Highway Safety Improvement Program | K1: Version | L1: 20230523
A2: Formal Funding Application
A3: Scoring Tool Instructions
A5: The instructions can be used to understand the functionality of the tool. The tool attempts to complete as many fields as possible form information entered in the Economic Crash Analysis Tool (ECAT).
A7: The worksheets have been protected because the tool is standardized to import into the ODOT Central Office Database. Once submitted, the complete data layouts will be imported into the current database. At this point, the district will be able to make any changes desired prior to the HSIP Program Committee Review.
A10: I recommend starting a new application by importing data from existing ECAT Tool(s). The import functionality will obtain information from (1) an ECAT Tool that does not have a fundamental change in Safety Performance Function (SPF) ('No' response in Cell "K14" on the Project Information Worksheet) or (2) an ECAT Tool that has have a fundamental change in Safety Performance Function (SPF) ('Yes' response in Cell "K14" on the Project Information Worksheet). Follow the coded prompts. Two files will be required for Item (2). The order of import is does not matter. Following the import process, please verify the data as assumptions have been made. For example, it was assumed that only one route (major route) was used in the Project Element Description Table when determining project limits (All NLFIDs match in Column F). Note: If you choose to import a new dataset, any previous information will be overridden.
A13: At times, it will be necessary to change the font size of cells to make the text visible. Once the tool is activated, select the cells you desire to decrease / increase the font size (selection can be contiguous or noncontiguous cells). Once the cells have been selected, select the desired functionality.
A16: This tool can be used to add rows of details for either work locations of funding sources. Submitters can add up to a total of 10 work locations. Similarly, there are a ten (10) total funding sources possible (including the three already defined). For funding sources, we are asking that each source be individually itemized.

Sheet Safety Application
A1: General Project Information | Z1: Show Conditional Format: | AA1: Yes
A2: Project Sponsoring Agency | D2: ODOT D8 | Z2: Lat Long Format: | AA2: Yes
A3: Project Name | D3: =IF(ScoringCalculations!C2="","",ScoringCalculations!C2) -> US-22 & Old 3C | Z3: Priority Rank Format: | AA3: Yes
A4: PID | D4: 121423
A5: Applicant Name | D5: Alex Genbauffe
A6: Contact Phone | D6: 5139336712
A7: Contact Email | D7: alexander.genbauffe@dot.ohio.gov
A9: Location Information
A10: ODOT District | C10: =IFERROR(VLOOKUP(H10,RefTables!A:B,2,FALSE),"") -> 8 | F10: County | H10: =MID(A62,2,3) -> WAR
A11: Route Number | C11: =IFERROR(MID(A62,5,2)&"-"&MID(A62,7,5)*1&IF(LEFT(A62,1)="S",IF(RIGHT(A62,2)="*C","R",MID(A62,13,1)),IF(RIGHT(A62,3)="**C","",MID(A62,12,1))),"") -> US-22R | F11: Road Name | H11: US-22
A12: Begin Logpoint | C12: =IF(C62="","",C62) -> 3.63 | F12: End Logpoint | H12: 3.63
A13: Begin Latitude | C13: 39.3244978 | F13: Begin Longitude | H13: -84.2457443
A14: End Latitude | C14: 39.3244978 | F14: End Longitude | H14: -84.2457443
A16: Project Description
A17: Summary of Crash Patterns
A18: From 2014-2017 there were 24 crashes at the intersection with 25% injuries. 14 crashes were EB rear end collisions (21% injuries). In 2019, District installed peak hour left turn restrictions (6-9am, 4-6pm), and from 2020-2023 there have been 20 crashes with 32% injuries and one fatality. 5 crashes were EB rear ends, with 60% injuries.
A19: Summary of Recommended Countermeasures
A20: Install EB left turn lane on US-22.
A21: Project Priority Information
A22: PID 101154 feasibility study was completed in 2018 which identified a number of projects along US-22- including widening to 4/5 lanes, left turn lanes, roundabouts, and other recommendations. District 8 has long wanted to install a left turn lane here due to EB US-22 rear end collisions. However, due to a structure that would need widened, that has been cost prohibitive in the past. D8 installed "no left turn" signs in 2019 to reduce these collisions, which has helped some but there are still rear end collisions occuring, with injuries. The bridge in question now needs replaced due to condition, so this is a great opportunity to install the left turn lane recommended in the 2018 feasibililty study. District will cover Design and replacement "in-kind" costs, while the Safety request is for widening of the bridge, and roadway work.
A23: Crash Data
A24: Crash Totals
A25: (average per year) | F25: Fatal & Serious Injury (KA) | G25: Visible Injury (B) | H25: Non-Visible (C) | I25: Property Damage Only (O) | J25: Total
A26: Existing Conditions: Predicted Crash Frequency | F26: =IF(ScoringCalculations!D43=0,"",ScoringCalculations!D43) -> 0.0395 | G26: =IF(ScoringCalculations!E43=0,"",ScoringCalculations!E43) -> 0.1653 | H26: =IF(ScoringCalculations!F43=0,"",ScoringCalculations!F43) -> 0.2235 | I26: =IF(ScoringCalculations!G43=0,"",ScoringCalculations!G43) -> 0.8769 | J26: =ROUND(SUM(F26:I26),2) -> 1.31
A27: Existing Conditions: Expected Crash Frequency | F27: =IF(ScoringCalculations!D44=0,"",ScoringCalculations!D44) -> 0.062 | G27: =IF(ScoringCalculations!E44=0,"",ScoringCalculations!E44) -> 0.2719 | H27: =IF(ScoringCalculations!F44=0,"",ScoringCalculations!F44) -> 0.3774 | I27: =IF(ScoringCalculations!G44=0,"",ScoringCalculations!G44) -> 1.7742 | J27: =ROUND(SUM(F27:I27),2) -> 2.49
A28: Potential for Safety Improvement | F28: =IF(ScoringCalculations!D45=0,"",ScoringCalculations!D45) -> 0.0225 | G28: =IF(ScoringCalculations!E45=0,"",ScoringCalculations!E45) -> 0.1066 | H28: =IF(ScoringCalculations!F45=0,"",ScoringCalculations!F45) -> 0.1539 | I28: =IF(ScoringCalculations!G45=0,"",ScoringCalculations!G45) -> 0.8973 | J28: 1.18
A29: ="Proposed Conditions: "&IF('Project Scoring'!H7="ECAT - Change in base SPF","Predicted","Expected")&" Crash Frequency" -> Proposed Conditions: Expected Crash Frequency | F29: =IF(ScoringCalculations!D46=0,"",ScoringCalculations!D46) -> 0.0415 | G29: =IF(ScoringCalculations!E46=0,"",ScoringCalculations!E46) -> 0.1822 | H29: =IF(ScoringCalculations!F46=0,"",ScoringCalculations!F46) -> 0.2529 | I29: =IF(ScoringCalculations!G46=0,"",ScoringCalculations!G46) -> 1.1887 | J29: 1.67
A30: Observed Crashes | F30: =IF(ScoringCalculations!D47="","",ScoringCalculations!D47) -> 0.25 | G30: =IF(ScoringCalculations!E47="","",ScoringCalculations!E47) -> 0.5 | H30: =IF(ScoringCalculations!F47="","",ScoringCalculations!F47) -> 1 | I30: =IF(ScoringCalculations!G47="","",ScoringCalculations!G47) -> 3.75 | J30: 5.5
A31: Observed People Injury Totals
F32: Fatal Injury (K) | G32: Serious Injury (A) | H32: Visible Injury (B) | I32: Non-Visible (C) | J32: Total
A33: Observed People Injury Totals | F33: =IF(ScoringCalculations!D53="","",ScoringCalculations!D53) -> 0.25 | G33: =IF(ScoringCalculations!E53="","",ScoringCalculations!E53) -> 0 | H33: =IF(ScoringCalculations!F53="","",ScoringCalculations!F53) -> 1 | I33: =IF(ScoringCalculations!G53="","",ScoringCalculations!G53) -> 1.25 | J33: =ROUND(SUM(F33:I33),2) -> 2.5
A35: Application Scoring
A36: Category | H36: Scoring Value | I36: Points Awarded | J36: Points Possible
A37: Ratio of Observed Fatal and Serious Injuries to Observed Total Crashes | H37: =IF(J30=0,"",ROUND(SUM(F33:G33)/J30,2)) -> 0.05 | I37: =IFERROR(VLOOKUP(H37,ScoringTable!AA:AB,2,TRUE),"") -> 10 | J37: =MAX(ScoringTable!AB:AB) -> 30
A38: Percentage of the Potential for Safety Improvement to Total Expected Crashes | H38: =IF(J27=0,"",IF(J28<0,0,IFERROR(ROUND(J28/J27,4),0))) -> 0.4739 | I38: =IFERROR(VLOOKUP(H38,ScoringTable!AC:AD,2,TRUE),"") -> 20 | J38: =MAX(ScoringTable!AD:AD) -> 20
A39: Relative Severity Index | H39: =IF(ScoringCalculations!B36=0,"",ScoringCalculations!B36) -> 30611.93 | I39: =IFERROR(VLOOKUP(H39,ScoringTable!AE:AF,2,TRUE),"") -> 10 | J39: =MAX(ScoringTable!AF:AF) -> 20
A40: Equivalent Property Damage Only Index | H40: =IF(J27=0,IF(J30=0,"",ROUND((F30*ScoringCalculations!D48+G30*ScoringCalculations!E48+H30*ScoringCalculations!F48+I30*ScoringCalculations!G48)/J30,2)),ROUND((F27*ScoringCalculations!D48+G27*ScoringCalculations!E48+H27*ScoringCalculations!F48+I27*ScoringCalculations!G48)/J27,2)) -> 3.24 | I40: =IFERROR(VLOOKUP(H40,ScoringTable!AG:AH,2,TRUE),"") -> 10 | J40: =MAX(ScoringTable!AH:AH) -> 20
A41: Location Equity Measure | H41: 0.0001 | I41: =IF(H41=0,"",IFERROR(VLOOKUP(H41,ScoringTable!AI:AJ,2,TRUE),"")) -> 0 | J41: =MAX(ScoringTable!AJ:AJ) -> 10
I42: =IFERROR(VLOOKUP(H42,ScoringTable!AM:AN,2,TRUE),"") -> 
I43: =IFERROR(IF(H43<0,0,VLOOKUP(H43,ScoringTable!AO:AP,2,TRUE)),"") -> 
I44: =IFERROR(VLOOKUP(H44,ScoringTable!AQ:AR,2,TRUE),"") -> 
A45: Total | I45: =IF(SUM(I37:I44)=0,"",SUM(I37:I44)) -> 50 | J45: =SUM(J37:J44) -> 100
A47: Safety Key Metrics
A48: Functional Class | D48: 3 - Other Principal Arterial Roadway | G48: Active Transportation Need | J48: 1
A49: Major Route AADT | D49: 20000 | G49: Active Transportation Demand | J49: 3
A50: Maximum Posted Speed Limit | D50: 45 | G50: Bicycle Level of traffic stress (if available)
G51: TOAST Score (if available)
A53: Strategic Highway Safety Plan
A54: Ohio Emphasis Area | E54: Serious Crash Types
A55: Ohio Emphasis Area Subcategory | E55: Intersection
A56: FHWA Emphasis Area | E56: Improving the design and operation of highway intersections
A57: FHWA Improvement Category | E57: Intersection geometry
A58: FHWA Improvement Subcategory | E58: Auxiliary lanes - add left-turn lane
A60: Work Locations
A61: NLFID | C61: Begin Logpoint | D61: End Logpoint | E61: Begin Latitude | F61: Begin Longitude | G61: Location Termini (i.e. from Street 1 to Street 2) | AA61: EndLatitude | AB61: EndLongitude
A62: SWARUS00022**C | C62: 3.63 | D62: 3.63 | E62: 39.3244978 | F62: -84.2457443 | G62: US-22 & Old 3C. | K62: =IF(OR(E62="",F62=""),"",HYPERLINK(CONCATENATE("http://maps.google.com/maps?q=",+E62,",+",+F62,"+(Begin Project)&iwloc=A&hl=en"),"Google Map")) -> Google Map | M62: =IF(OR(E62="",F62=""),"",HYPERLINK(CONCATENATE("http://bing.com/maps/default.aspx?rtop=1~0&rtp=pos.",E62,"_",F62,"_","Begin Project"),"Bing Maps")) -> Bing Maps | O62: =IF(A62="","",IF(OR(MID(A62,5,2)="IR",MID(A62,5,2)="SR",MID(A62,5,2)="US"),IF(RIGHT(A62,1)="C",HYPERLINK("http://pathweb.pathwayservices.com/ohiopublic/?nlfid='"&A62&"'&logpoint="&C62,"Pathway Images"),"Not Available"),"Not Available")) -> Pathway Images
K63: =IF(OR(E63="",F63=""),"",HYPERLINK(CONCATENATE("http://maps.google.com/maps?q=",+E63,",+",+F63,"+(Begin Project)&iwloc=A&hl=en"),"Google Map")) ->  | M63: =IF(OR(E63="",F63=""),"",HYPERLINK(CONCATENATE("http://bing.com/maps/default.aspx?rtop=1~0&rtp=pos.",E63,"_",F63,"_","Begin Project"),"Bing Maps")) -> 
A73: Project Funding
A74: Project Phase | D74: Safety Study | E74: Interchange Mod. Study | F74: PE - Environmental | G74: PE - Detailed Design | H74: Right of Way /Utilities | I74: Construction | J74: Total
A75: Fiscal Year | D75: 2017 | F75: 2025 | G75: 2026 | H75: 2028 | I75: 2029
A76: Project Phase Completed | I76: N/A
A77: Previous Safety | J77: =SUM(D77:I77) -> 0
A78: New Safety | H78: 100000 | I78: 1805000 | J78: =SUM(D78:I78) -> 1905000
A79: Sponsor Funding | D79: 283459 | F79: 333333 | G79: 166667 | I79: 3579000 | J79: 4362459
J80: 0
J81: 0
J82: 0
J83: 0
J84: 0
J85: 0
J86: 0
C87: Total | D87: =SUM(D77:D86) -> 283459 | E87: =SUM(E77:E86) -> 0 | F87: 333333 | G87: 166667 | H87: 100000 | I87: 5384000 | J87: 6267459
A88: Additional Funding Detail
A89: District to cover design costs. PID 101154 feasibility study was completed in 2018 which identified a number of projects along US-22- including widening to 4/5 lanes, left turn lanes, roundabouts, and other recommendations. District 8 has long wanted to install a left turn lane here due to EB US-22 rear end collisions. However, due to a structure that would need widened, that has been cost prohibitive in the past. D8 installed "no left turn" signs in 2019 to reduce these collisions, which has helped some but there are still rear end collisions occuring, with injuries. The bridge in question now needs replaced due to condition, so this is a great opportunity to install the left turn lane. District will cover Design and replacement "in-kind" costs, while the Safety request is for widening of the bridge, and roadway work.
A91: Safety Economic Analysis Results
A92: Net Present Value of Project | E92: =IF(ScoringCalculations!D58=0,"",ScoringCalculations!D58) -> 1905000 | G92: Net Benefit | I92: =IF(ScoringCalculations!D60=0,"",ScoringCalculations!D60) -> -1561329.19
A93: Net Present Value of Safety Benefits | E93: =IF(ScoringCalculations!D59=0,"",ScoringCalculations!D59) -> 343670.81 | G93: Benefit / Total Project Cost Ratio | I93: =IF(ScoringCalculations!D61="Unable to calculate","",ROUND(ScoringCalculations!D61,2)) -> 0.18
G94: Benefit / Safety Funding Request Ratio | I94: =IF(E93="","",IF(J78=0,"Please complete project funding table",ROUND(E93/J78,2))) -> 0.18
A96: Project Development
A97: Project Phase | E97: Completed by | H97: Completion Date
A98: Safety Study | E98: Arcadis | H98: 2018
A99: Interchange Modification Study
A100: PE-Environmental
A101: PE-Detailed Design
A102: Right of Way / Utilities
A104: Applicant Information
A105: Name | F105: Title | I105: Phone Number
A106: Alex Genbauffe | F106: Traffic Studies Engineer | I106: =IF(D6="","",D6) -> 5139336712
A107: Signature | I107: Date
A108: Alex Genbauffe | I108: =NOW() -> 2024-03-29T10:12:01.960
I110: Version: | J110: 20230523
A111: The following information should be included in submission of the safety project application: 1. An electronic copy of the Safety Engineering Study 2. All Excel Analysis Files May include Crash Analysis Module (CAM) Tool, Economic Crash Analysis Tool (ECAT), HSIP Application and Scoring Tool. 3. Benefit-Cost Results (Economic Analysis) 4. DSRT approval signatures
A113: ODOT Use Only:
A114: Application ID:
A115: 202403D08-01
A116: Document Library on Odrive:
A117: O:\SAFETY\D08\SAFETY APPLICATIONS\202403 Applications\202403D08-01 (WAR-22-3.62 Old 3C)

Sheet DSRTSignature
A1: General Project Information | Z1: Show Conditional Format: | AA1: Yes
A2: Project Sponsoring Agency | Z2: Lat Long Format: | AA2: Yes
A3: Project Name | Z3: Priority Rank Format: | AA3: Yes
A4: PID
A5: Project Manager
A6: Contact Phone
A7: Contact Email
A9: Project Description
A10: Summary of Crash Patterns
A12: Summary of Recommended Countermeasures | B12: Summary of Recommended Countermeasures | C12: Summary of Recommended Countermeasures | D12: Summary of Recommended Countermeasures | E12: Summary of Recommended Countermeasures | F12: Summary of Recommended Countermeasures | G12: Summary of Recommended Countermeasures | H12: Summary of Recommended Countermeasures | I12: Summary of Recommended Countermeasures | J12: Summary of Recommended Countermeasures
A14: Project Priority Information | B14: Project Priority Information | C14: Project Priority Information | D14: Project Priority Information | E14: Project Priority Information | F14: Project Priority Information | G14: Project Priority Information | H14: Project Priority Information | I14: Project Priority Information | J14: Project Priority Information
A17: District Safety Review Team Signatures
A18: Name | F18: Title | I18: Approve | J18: Disapprove
F19: Capital Programs Administrator | I19: ¨ | J19: ¨
A20: Signature | I20: Date
A22: Comments:
A23: Name | F23: Title | I23: Approve | J23: Disapprove
F24: Highway Management Adminstrator | I24: ¨ | J24: ¨
A25: Signature | I25: Date
A27: Comments:
A28: Name | F28: Title | I28: Approve | J28: Disapprove
F29: Design Engineer | I29: ¨ | J29: ¨
A30: Signature | I30: Date
A32: Comments:
A33: Name | F33: Title | I33: Approve | J33: Disapprove
F34: Planning Engineer | I34: ¨ | J34: ¨
A35: Signature | I35: Date
A37: Comments:
A38: Name | F38: Title | I38: Approve | J38: Disapprove
F39: Traffic Engineer | I39: ¨ | J39: ¨
A40: Signature | I40: Date
A42: Comments:
A43: Name | F43: Title | I43: Approve | J43: Disapprove
F44: DSRT Chairperson | I44: ¨ | J44: ¨
A45: Signature | I45: Date
A47: Comments:

Sheet Project Scoring (hidden)
A1: Project Scoring Summary
A2: General Project Information
A3: Project Name | F3: Contact Email
A4: Project Description | F4: Contact Phone
A5: Reference Number | F5: Date Performed
A6: Analyst | F6: Analysis Year
A7: Agency/Company | F7: Analysis Type Performed
B9: Category | H9: Value | I9: Points Awarded
B10: ='Safety Application'!A37 -> Ratio of Observed Fatal and Serious Injuries to Observed Total Crashes | H10: =IF('Safety Application'!H37="","",'Safety Application'!H37) -> 0.05 | I10: =IF('Safety Application'!I37="","",'Safety Application'!I37) -> 10
B11: ='Safety Application'!A38 -> Percentage of the Potential for Safety Improvement to Total Expected Crashes | H11: =IF('Safety Application'!H38="","",'Safety Application'!H38) -> 0.4739 | I11: =IF('Safety Application'!I38="","",'Safety Application'!I38) -> 20
B12: ='Safety Application'!A39 -> Relative Severity Index | H12: =IF('Safety Application'!H39="","",'Safety Application'!H39) -> 30611.93 | I12: =IF('Safety Application'!I39="","",'Safety Application'!I39) -> 10
B13: ='Safety Application'!A40 -> Equivalent Property Damage Only Index | H13: =IF('Safety Application'!H40="","",'Safety Application'!H40) -> 3.24 | I13: =IF('Safety Application'!I40="","",'Safety Application'!I40) -> 10
B14: ='Safety Application'!A41 -> Location Equity Measure | H14: =IF('Safety Application'!H41="","",'Safety Application'!H41) -> 0.0001 | I14: =IF('Safety Application'!I41="","",'Safety Application'!I41) -> 0
B16: Safety Application Score | I16: =SUM(I10:I14) -> 50

Sheet ScoringCalculations
A1: Project Scoring Summary | AA1: HSM Analysis Type: | AB1: ECAT - No Change in base SPF
A2: Project Name | C2: US-22 & Old 3C | F2: Contact Email | H2: alexander.genbauffe@dot.ohio.gov
A3: Project Description | F3: Contact Phone | H3: 5139336712
A4: Reference Number | F4: Date Performed | H4: 2024-03-27
A5: Analyst | C5: ADG | F5: Analysis Year | H5: 2024
A6: Agency/Company | C6: ODOT | F6: Analysis Type Performed
A8: Relative Severity Index Calculation | AI8: All Sites
A9: ODOT District | B9: STW | AA9: NLFID: | AE9: FindTruck | AF9: 0 | AI9: HSM Elements Only | BA9: Crash Costs (2022)
A10: Urban Area | B10: Yes | AA10: Blog: | AE10: FindVC | AF10: 0 | AI10: Observed Elements Only | BA10: KA | BB10: B | BC10: C | BD10: O
A11: Freeway | B11: No | AA11: Elog: | BA11: 484544 | BB11: 69135 | BC11: 46860 | BD11: 10560
AA12: WAADT: | BA12: =ROUND(BA11/$BD$11,2) -> 45.88 | BB12: =ROUND(BB11/$BD$11,2) -> 6.55 | BC12: =ROUND(BC11/$BD$11,2) -> 4.44 | BD12: =ROUND(BD11/$BD$11,2) -> 1
A13: Fill in the Number of Crashes by Crash Type | AA13: WAADTT:
A14: Crash Type | B14: Number of Crashes | C14: Crash Type Severity Calc | D14: RSI Multiplier | AA14: WVCRatio:
A15: Unknown | B15: 0.00155103 | C15: =IF(OR($B$9="",$B$10="",$B$11=""),"",B15*D15) -> 47.89425537 | D15: =IFERROR(ROUND(IF($B$9="STW",SUMIFS(RSI_Data!$F:$F,RSI_Data!$C:$C,$B$10,RSI_Data!$D:$D,$B$11,RSI_Data!$E:$E,$A15)/SUMIFS(RSI_Data!$G:$G,RSI_Data!$C:$C,$B$10,RSI_Data!$D:$D,$B$11,RSI_Data!$E:$E,$A15),SUMIFS(RSI_Data!$F:$F,RSI_Data!$C:$C,$B$10,RSI_Data!$D:$D,$B$11,RSI_Data!$A:$A,$B$9,RSI_Data!$E:$E,$A15)/SUMIFS(RSI_Data!$G:$G,RSI_Data!$C:$C,$B$10,RSI_Data!$D:$D,$B$11,RSI_Data!$A:$A,$B$9,RSI_Data!$E:$E,$A15)),0),0) -> 30879 | AA15: TotalLength:
A16: Head On | B16: 0.05371884 | C16: =IF(OR($B$9="",$B$10="",$B$11=""),"",B16*D16) -> 4246.796615 | D16: =IFERROR(ROUND(IF($B$9="STW",SUMIFS(RSI_Data!$F:$F,RSI_Data!$C:$C,$B$10,RSI_Data!$D:$D,$B$11,RSI_Data!$E:$E,$A16)/SUMIFS(RSI_Data!$G:$G,RSI_Data!$C:$C,$B$10,RSI_Data!$D:$D,$B$11,RSI_Data!$E:$E,$A16),SUMIFS(RSI_Data!$F:$F,RSI_Data!$C:$C,$B$10,RSI_Data!$D:$D,$B$11,RSI_Data!$A:$A,$B$9,RSI_Data!$E:$E,$A16)/SUMIFS(RSI_Data!$G:$G,RSI_Data!$C:$C,$B$10,RSI_Data!$D:$D,$B$11,RSI_Data!$A:$A,$B$9,RSI_Data!$E:$E,$A16)),0),0) -> 79056 | AA16: Functional Class: | AC16: =IFERROR(VLOOKUP(AB16,RefTables!E27:F34,2,FALSE),"Other") -> Other
A17: Rear End | B17: 0.96945231 | C17: 24211.10199 | D17: =IFERROR(ROUND(IF($B$9="STW",SUMIFS(RSI_Data!$F:$F,RSI_Data!$C:$C,$B$10,RSI_Data!$D:$D,$B$11,RSI_Data!$E:$E,$A17)/SUMIFS(RSI_Data!$G:$G,RSI_Data!$C:$C,$B$10,RSI_Data!$D:$D,$B$11,RSI_Data!$E:$E,$A17),SUMIFS(RSI_Data!$F:$F,RSI_Data!$C:$C,$B$10,RSI_Data!$D:$D,$B$11,RSI_Data!$A:$A,$B$9,RSI_Data!$E:$E,$A17)/SUMIFS(RSI_Data!$G:$G,RSI_Data!$C:$C,$B$10,RSI_Data!$D:$D,$B$11,RSI_Data!$A:$A,$B$9,RSI_Data!$E:$E,$A17)),0),0) -> 24974 | AA17: Truck %: | AB17: =IFERROR(ROUND(AB13/AB12,4),"") -> 
A18: Backing | B18: 0.10047129 | C18: 1334.861559 | D18: =IFERROR(ROUND(IF($B$9="STW",SUMIFS(RSI_Data!$F:$F,RSI_Data!$C:$C,$B$10,RSI_Data!$D:$D,$B$11,RSI_Data!$E:$E,$A18)/SUMIFS(RSI_Data!$G:$G,RSI_Data!$C:$C,$B$10,RSI_Data!$D:$D,$B$11,RSI_Data!$E:$E,$A18),SUMIFS(RSI_Data!$F:$F,RSI_Data!$C:$C,$B$10,RSI_Data!$D:$D,$B$11,RSI_Data!$A:$A,$B$9,RSI_Data!$E:$E,$A18)/SUMIFS(RSI_Data!$G:$G,RSI_Data!$C:$C,$B$10,RSI_Data!$D:$D,$B$11,RSI_Data!$A:$A,$B$9,RSI_Data!$E:$E,$A18)),0),0) -> 13286
A19: Sideswipe - Meeting | B19: 0.0037939 | C19: 123.0285892 | D19: =IFERROR(ROUND(IF($B$9="STW",SUMIFS(RSI_Data!$F:$F,RSI_Data!$C:$C,$B$10,RSI_Data!$D:$D,$B$11,RSI_Data!$E:$E,$A19)/SUMIFS(RSI_Data!$G:$G,RSI_Data!$C:$C,$B$10,RSI_Data!$D:$D,$B$11,RSI_Data!$E:$E,$A19),SUMIFS(RSI_Data!$F:$F,RSI_Data!$C:$C,$B$10,RSI_Data!$D:$D,$B$11,RSI_Data!$A:$A,$B$9,RSI_Data!$E:$E,$A19)/SUMIFS(RSI_Data!$G:$G,RSI_Data!$C:$C,$B$10,RSI_Data!$D:$D,$B$11,RSI_Data!$A:$A,$B$9,RSI_Data!$E:$E,$A19)),0),0) -> 32428
A20: Sideswipe - Passing | B20: 0.34779158 | C20: 6939.137604 | D20: =IFERROR(ROUND(IF($B$9="STW",SUMIFS(RSI_Data!$F:$F,RSI_Data!$C:$C,$B$10,RSI_Data!$D:$D,$B$11,RSI_Data!$E:$E,$A20)/SUMIFS(RSI_Data!$G:$G,RSI_Data!$C:$C,$B$10,RSI_Data!$D:$D,$B$11,RSI_Data!$E:$E,$A20),SUMIFS(RSI_Data!$F:$F,RSI_Data!$C:$C,$B$10,RSI_Data!$D:$D,$B$11,RSI_Data!$A:$A,$B$9,RSI_Data!$E:$E,$A20)/SUMIFS(RSI_Data!$G:$G,RSI_Data!$C:$C,$B$10,RSI_Data!$D:$D,$B$11,RSI_Data!$A:$A,$B$9,RSI_Data!$E:$E,$A20)),0),0) -> 19952
A21: Angle | B21: 0.51767233 | C21: 19679.31362 | D21: =IFERROR(ROUND(IF($B$9="STW",SUMIFS(RSI_Data!$F:$F,RSI_Data!$C:$C,$B$10,RSI_Data!$D:$D,$B$11,RSI_Data!$E:$E,$A21)/SUMIFS(RSI_Data!$G:$G,RSI_Data!$C:$C,$B$10,RSI_Data!$D:$D,$B$11,RSI_Data!$E:$E,$A21),SUMIFS(RSI_Data!$F:$F,RSI_Data!$C:$C,$B$10,RSI_Data!$D:$D,$B$11,RSI_Data!$A:$A,$B$9,RSI_Data!$E:$E,$A21)/SUMIFS(RSI_Data!$G:$G,RSI_Data!$C:$C,$B$10,RSI_Data!$D:$D,$B$11,RSI_Data!$A:$A,$B$9,RSI_Data!$E:$E,$A21)),0),0) -> 38015
A22: Parked Vehicle | B22: 0.03240692 | C22: 650.2772567 | D22: =IFERROR(ROUND(IF($B$9="STW",SUMIFS(RSI_Data!$F:$F,RSI_Data!$C:$C,$B$10,RSI_Data!$D:$D,$B$11,RSI_Data!$E:$E,$A22)/SUMIFS(RSI_Data!$G:$G,RSI_Data!$C:$C,$B$10,RSI_Data!$D:$D,$B$11,RSI_Data!$E:$E,$A22),SUMIFS(RSI_Data!$F:$F,RSI_Data!$C:$C,$B$10,RSI_Data!$D:$D,$B$11,RSI_Data!$A:$A,$B$9,RSI_Data!$E:$E,$A22)/SUMIFS(RSI_Data!$G:$G,RSI_Data!$C:$C,$B$10,RSI_Data!$D:$D,$B$11,RSI_Data!$A:$A,$B$9,RSI_Data!$E:$E,$A22)),0),0) -> 20066
A23: Pedestrian | B23: 0.01481366398 | C23: 2350.439623 | D23: =IFERROR(ROUND(IF($B$9="STW",SUMIFS(RSI_Data!$F:$F,RSI_Data!$C:$C,$B$10,RSI_Data!$D:$D,$B$11,RSI_Data!$E:$E,$A23)/SUMIFS(RSI_Data!$G:$G,RSI_Data!$C:$C,$B$10,RSI_Data!$D:$D,$B$11,RSI_Data!$E:$E,$A23),SUMIFS(RSI_Data!$F:$F,RSI_Data!$C:$C,$B$10,RSI_Data!$D:$D,$B$11,RSI_Data!$A:$A,$B$9,RSI_Data!$E:$E,$A23)/SUMIFS(RSI_Data!$G:$G,RSI_Data!$C:$C,$B$10,RSI_Data!$D:$D,$B$11,RSI_Data!$A:$A,$B$9,RSI_Data!$E:$E,$A23)),0),0) -> 158667
A24: Animal | B24: 1.3e-05 | C24: 0.185588 | D24: =IFERROR(ROUND(IF($B$9="STW",SUMIFS(RSI_Data!$F:$F,RSI_Data!$C:$C,$B$10,RSI_Data!$D:$D,$B$11,RSI_Data!$E:$E,$A24)/SUMIFS(RSI_Data!$G:$G,RSI_Data!$C:$C,$B$10,RSI_Data!$D:$D,$B$11,RSI_Data!$E:$E,$A24),SUMIFS(RSI_Data!$F:$F,RSI_Data!$C:$C,$B$10,RSI_Data!$D:$D,$B$11,RSI_Data!$A:$A,$B$9,RSI_Data!$E:$E,$A24)/SUMIFS(RSI_Data!$G:$G,RSI_Data!$C:$C,$B$10,RSI_Data!$D:$D,$B$11,RSI_Data!$A:$A,$B$9,RSI_Data!$E:$E,$A24)),0),0) -> 14276
A25: Train | B25: 0.00020631 | C25: 19.64731392 | D25: =IFERROR(ROUND(IF($B$9="STW",SUMIFS(RSI_Data!$F:$F,RSI_Data!$C:$C,$B$10,RSI_Data!$D:$D,$B$11,RSI_Data!$E:$E,$A25)/SUMIFS(RSI_Data!$G:$G,RSI_Data!$C:$C,$B$10,RSI_Data!$D:$D,$B$11,RSI_Data!$E:$E,$A25),SUMIFS(RSI_Data!$F:$F,RSI_Data!$C:$C,$B$10,RSI_Data!$D:$D,$B$11,RSI_Data!$A:$A,$B$9,RSI_Data!$E:$E,$A25)/SUMIFS(RSI_Data!$G:$G,RSI_Data!$C:$C,$B$10,RSI_Data!$D:$D,$B$11,RSI_Data!$A:$A,$B$9,RSI_Data!$E:$E,$A25)),0),0) -> 95232
A26: Pedalcycles | B26: 0.008651116961 | C26: 911.4124741 | D26: =IFERROR(ROUND(IF($B$9="STW",SUMIFS(RSI_Data!$F:$F,RSI_Data!$C:$C,$B$10,RSI_Data!$D:$D,$B$11,RSI_Data!$E:$E,$A26)/SUMIFS(RSI_Data!$G:$G,RSI_Data!$C:$C,$B$10,RSI_Data!$D:$D,$B$11,RSI_Data!$E:$E,$A26),SUMIFS(RSI_Data!$F:$F,RSI_Data!$C:$C,$B$10,RSI_Data!$D:$D,$B$11,RSI_Data!$A:$A,$B$9,RSI_Data!$E:$E,$A26)/SUMIFS(RSI_Data!$G:$G,RSI_Data!$C:$C,$B$10,RSI_Data!$D:$D,$B$11,RSI_Data!$A:$A,$B$9,RSI_Data!$E:$E,$A26)),0),0) -> 105352
A27: Other Non-Vehicle | B27: 2.6e-05 | C27: 4.352894 | D27: =IFERROR(ROUND(IF($B$9="STW",SUMIFS(RSI_Data!$F:$F,RSI_Data!$C:$C,$B$10,RSI_Data!$D:$D,$B$11,RSI_Data!$E:$E,$A27)/SUMIFS(RSI_Data!$G:$G,RSI_Data!$C:$C,$B$10,RSI_Data!$D:$D,$B$11,RSI_Data!$E:$E,$A27),SUMIFS(RSI_Data!$F:$F,RSI_Data!$C:$C,$B$10,RSI_Data!$D:$D,$B$11,RSI_Data!$A:$A,$B$9,RSI_Data!$E:$E,$A27)/SUMIFS(RSI_Data!$G:$G,RSI_Data!$C:$C,$B$10,RSI_Data!$D:$D,$B$11,RSI_Data!$A:$A,$B$9,RSI_Data!$E:$E,$A27)),0),0) -> 167419
A28: Fixed Object | B28: 0.10792067 | C28: 4669.187788 | D28: =IFERROR(ROUND(IF($B$9="STW",SUMIFS(RSI_Data!$F:$F,RSI_Data!$C:$C,$B$10,RSI_Data!$D:$D,$B$11,RSI_Data!$E:$E,$A28)/SUMIFS(RSI_Data!$G:$G,RSI_Data!$C:$C,$B$10,RSI_Data!$D:$D,$B$11,RSI_Data!$E:$E,$A28),SUMIFS(RSI_Data!$F:$F,RSI_Data!$C:$C,$B$10,RSI_Data!$D:$D,$B$11,RSI_Data!$A:$A,$B$9,RSI_Data!$E:$E,$A28)/SUMIFS(RSI_Data!$G:$G,RSI_Data!$C:$C,$B$10,RSI_Data!$D:$D,$B$11,RSI_Data!$A:$A,$B$9,RSI_Data!$E:$E,$A28)),0),0) -> 43265
A29: Other Object | B29: 0.00314275 | C29: 65.15863575 | D29: =IFERROR(ROUND(IF($B$9="STW",SUMIFS(RSI_Data!$F:$F,RSI_Data!$C:$C,$B$10,RSI_Data!$D:$D,$B$11,RSI_Data!$E:$E,$A29)/SUMIFS(RSI_Data!$G:$G,RSI_Data!$C:$C,$B$10,RSI_Data!$D:$D,$B$11,RSI_Data!$E:$E,$A29),SUMIFS(RSI_Data!$F:$F,RSI_Data!$C:$C,$B$10,RSI_Data!$D:$D,$B$11,RSI_Data!$A:$A,$B$9,RSI_Data!$E:$E,$A29)/SUMIFS(RSI_Data!$G:$G,RSI_Data!$C:$C,$B$10,RSI_Data!$D:$D,$B$11,RSI_Data!$A:$A,$B$9,RSI_Data!$E:$E,$A29)),0),0) -> 20733
A30: Overturning | B30: 0.00255853 | C30: 289.8840075 | D30: =IFERROR(ROUND(IF($B$9="STW",SUMIFS(RSI_Data!$F:$F,RSI_Data!$C:$C,$B$10,RSI_Data!$D:$D,$B$11,RSI_Data!$E:$E,$A30)/SUMIFS(RSI_Data!$G:$G,RSI_Data!$C:$C,$B$10,RSI_Data!$D:$D,$B$11,RSI_Data!$E:$E,$A30),SUMIFS(RSI_Data!$F:$F,RSI_Data!$C:$C,$B$10,RSI_Data!$D:$D,$B$11,RSI_Data!$A:$A,$B$9,RSI_Data!$E:$E,$A30)/SUMIFS(RSI_Data!$G:$G,RSI_Data!$C:$C,$B$10,RSI_Data!$D:$D,$B$11,RSI_Data!$A:$A,$B$9,RSI_Data!$E:$E,$A30)),0),0) -> 113301
A31: Other Non-Collision | B31: 0.00687479 | C31: 277.8308883 | D31: =IFERROR(ROUND(IF($B$9="STW",SUMIFS(RSI_Data!$F:$F,RSI_Data!$C:$C,$B$10,RSI_Data!$D:$D,$B$11,RSI_Data!$E:$E,$A31)/SUMIFS(RSI_Data!$G:$G,RSI_Data!$C:$C,$B$10,RSI_Data!$D:$D,$B$11,RSI_Data!$E:$E,$A31),SUMIFS(RSI_Data!$F:$F,RSI_Data!$C:$C,$B$10,RSI_Data!$D:$D,$B$11,RSI_Data!$A:$A,$B$9,RSI_Data!$E:$E,$A31)/SUMIFS(RSI_Data!$G:$G,RSI_Data!$C:$C,$B$10,RSI_Data!$D:$D,$B$11,RSI_Data!$A:$A,$B$9,RSI_Data!$E:$E,$A31)),0),0) -> 40413
A32: Left Turn | B32: 0.19497499 | C32: 7637.170358 | D32: =IFERROR(ROUND(IF($B$9="STW",SUMIFS(RSI_Data!$F:$F,RSI_Data!$C:$C,$B$10,RSI_Data!$D:$D,$B$11,RSI_Data!$E:$E,$A32)/SUMIFS(RSI_Data!$G:$G,RSI_Data!$C:$C,$B$10,RSI_Data!$D:$D,$B$11,RSI_Data!$E:$E,$A32),SUMIFS(RSI_Data!$F:$F,RSI_Data!$C:$C,$B$10,RSI_Data!$D:$D,$B$11,RSI_Data!$A:$A,$B$9,RSI_Data!$E:$E,$A32)/SUMIFS(RSI_Data!$G:$G,RSI_Data!$C:$C,$B$10,RSI_Data!$D:$D,$B$11,RSI_Data!$A:$A,$B$9,RSI_Data!$E:$E,$A32)),0),0) -> 39170
A33: Right Turn | B33: 0.11952476 | C33: 2630.261869 | D33: =IFERROR(ROUND(IF($B$9="STW",SUMIFS(RSI_Data!$F:$F,RSI_Data!$C:$C,$B$10,RSI_Data!$D:$D,$B$11,RSI_Data!$E:$E,$A33)/SUMIFS(RSI_Data!$G:$G,RSI_Data!$C:$C,$B$10,RSI_Data!$D:$D,$B$11,RSI_Data!$E:$E,$A33),SUMIFS(RSI_Data!$F:$F,RSI_Data!$C:$C,$B$10,RSI_Data!$D:$D,$B$11,RSI_Data!$A:$A,$B$9,RSI_Data!$E:$E,$A33)/SUMIFS(RSI_Data!$G:$G,RSI_Data!$C:$C,$B$10,RSI_Data!$D:$D,$B$11,RSI_Data!$A:$A,$B$9,RSI_Data!$E:$E,$A33)),0),0) -> 22006
A34: Totals | B34: =SUM(B15:B33) -> 2.485564781 | C34: =SUM(C15:C33) -> 76087.94293
A36: RSI Value = | B36: =IFERROR(ROUND(C34/B34,2),0) -> 30611.93
A40: All Sites
A41: Crash Frequencies Per Year Summary Results | AA41: Project EB Method Summary Results (Without Animal Crashes)
D42: KA | E42: B | F42: C | G42: O | H42: Total | AD42: KA | AE42: B | AF42: C | AG42: O | AH42: Total
A43: Existing Conditions: Predicted Crash Frequency | D43: =IF($AH$43+$AH$50=0,"",IF($A$40=$AI$10,AD50,IF($A$40=$AI$9,AD43,AD43+AD50))) -> 0.0395 | E43: =IF($AH$43+$AH$50=0,"",IF($A$40=$AI$10,AE50,IF($A$40=$AI$9,AE43,AE43+AE50))) -> 0.1653 | F43: 0.2235 | G43: 0.8769 | H43: =ROUND(SUM(D43:G43),2) -> 1.31 | AA43: Existing Conditions: Predicted Crash Frequency | AD43: 0.0395 | AE43: 0.1653 | AF43: 0.2235 | AG43: 0.8769 | AH43: 1.3052
A44: Existing Conditions: Expected Crash Frequency | D44: =IF($AH$44+$AH$50=0,"",IF($A$41=$AI$10,AD50,IF($A$41=$AI$9,AD44,AD44+AD50))) -> 0.062 | E44: =IF($AH$44+$AH$50=0,"",IF($A$41=$AI$10,AE50,IF($A$41=$AI$9,AE44,AE44+AE50))) -> 0.2719 | F44: 0.3774 | G44: 1.7742 | H44: 2.49 | AA44: Existing Conditions: Expected Crash Frequency | AD44: 0.062 | AE44: 0.2719 | AF44: 0.3774 | AG44: 1.7742 | AH44: 2.4855
A45: Potential for Safety Improvement | D45: =IF($AH$43+$AH$50=0,"",D44-D43) -> 0.0225 | E45: =IF($AH$43+$AH$50=0,"",E44-E43) -> 0.1066 | F45: 0.1539 | G45: 0.8973 | H45: 1.18 | AA45: Potential for Safety Improvement | AD45: 0.0225 | AE45: 0.1066 | AF45: 0.1539 | AG45: 0.8973 | AH45: 1.1803
A46: ="Proposed Conditions: "&IF('Project Scoring'!$H$7="ECAT - Change in base SPF","Predicted","Expected")&" Crash Frequency" -> Proposed Conditions: Expected Crash Frequency | D46: =IF($AH$46+$AH$51=0,"",IF($A$43=$AI$10,AD51,IF($A$43=$AI$9,AD46,AD46+AD51))) -> 0.0415 | E46: =IF($AH$46+$AH$51=0,"",IF($A$43=$AI$10,AE51,IF($A$43=$AI$9,AE46,AE46+AE51))) -> 0.1822 | F46: 0.2529 | G46: 1.1887 | H46: 1.67 | AA46: ="Proposed Conditions: "&IF('Project Scoring'!$H$7="ECAT - Change in base SPF","Predicted","Expected")&" Crash Frequency" -> Proposed Conditions: Expected Crash Frequency | AD46: 0.0415 | AE46: 0.1822 | AF46: 0.2529 | AG46: 1.1887 | AH46: 1.6653
A47: Observed Crashes | D47: 0.25 | E47: 0.5 | F47: 1 | G47: 3.75 | H47: 5.5
A48: Equivalent Property Damage Only Factor | D48: =BA12 -> 45.88 | E48: =BB12 -> 6.55 | F48: 4.44 | G48: 1 | AA48: Project EB Method Summary Results (Without Animal Crashes)
A49: Equivalent Property Damage Only Value | D49: =IF($H$44=0,D48*D47,D44*D48) -> 2.84456 | E49: =IF($H$44=0,E48*E47,E44*E48) -> 1.780945 | F49: 1.675656 | G49: 1.7742 | H49: =ROUND(SUM(D49:G49),2) -> 8.08 | AD49: KA | AE49: B | AF49: C | AG49: O | AH49: Total
AA50: Existing Conditions Observed Crashes | AD50: 0 | AE50: 0 | AF50: 0 | AG50: 0 | AH50: 0
A51: People Injuries Per Year Summary Results | AA51: Proposed Conditions Observed Crashes | AD51: 0 | AE51: 0 | AF51: 0 | AG51: 0 | AH51: 0
D52: K | E52: A | F52: B | G52: C | H52: Total
A53: Observed Totals | D53: 0.25 | E53: 0 | F53: 1 | G53: 1.25 | H53: =ROUND(SUM(D53:G53),2) -> 2.5
A56: Benefit - Cost Ratio Calculations
C58: Net Present Value of Project | D58: 1905000
C59: Net Present Value of Safety Benefits | D59: 343670.81
C60: Net Benefit | D60: -1561329.19
C61: Benefit / Cost Ratio | D61: 0.1804046264

Sheet ScoringTable
A1: ODOT Highway Safety Improvement Program (HSIP) | AA1: Safety Criteria
A2: Formal Funding Application Scoring Criteria | AA2: Ratio of Observed Fatal and Serious Injuries to Observed Total Crashes | AC2: Percentage of the Potential for Safety Improvement to Total Expected Crashes | AE2: Relative Severity Index | AG2: Equivalent Property Damage Only Index | AI2: Location Equity Measure
A3: =AA2 -> Ratio of Observed Fatal and Serious Injuries to Observed Total Crashes | C3: =AC2 -> Percentage of the Potential for Safety Improvement to Total Expected Crashes | E3: =AE2 -> Relative Severity Index | G3: =AG2 -> Equivalent Property Damage Only Index | I3: =AI2 -> Location Equity Measure | AA3: Value | AB3: Points | AC3: Value | AD3: Points | AE3: Value | AF3: Points | AG3: Value | AH3: Points | AI3: Value | AJ3: Points
A4: Value | B4: Points | C4: Value | D4: Points | E4: Value | F4: Points | G4: Value | H4: Points | I4: Value | J4: Points | AA4: 0 | AB4: 0 | AC4: 0 | AD4: 0 | AE4: 0 | AF4: 0 | AG4: 0 | AH4: 0 | AI4: 0 | AJ4: 0
A5: ="< "&TEXT(AA5,"#0.00") -> < 0.01 | B5: =IF(AB4="","",AB4) -> 0 | C5: ="< "&AC5*100&"%" -> < 2.5% | D5: =IF(AD4="","",AD4) -> 0 | E5: ="< "&TEXT(AE5,"00,000") -> < 20,000 | F5: =IF(AF4="","",AF4) -> 0 | G5: ="< "&TEXT(AG5,"#0.00") -> < 1.00 | H5: =IF(AH4="","",AH4) -> 0 | I5: ="< "&AI5*100&"%" -> < 10% | J5: =IF(AJ4="","",AJ4) -> 0 | AA5: 0.01 | AB5: 2 | AC5: 0.025 | AD5: 2 | AE5: 20000 | AF5: 2 | AG5: 1 | AH5: 2 | AI5: 0.1 | AJ5: 2
A6: =TEXT(AA5,"#0.00")&"-"&TEXT(AA6-0.001,"#0.000") -> 0.01-0.019 | B6: =IF(AB5="","",AB5) -> 2 | C6: =AC5*100&"%"&"-"&(AC6-0.0001)*100&"%" -> 2.5%-4.99% | D6: 2 | E6: =TEXT(AE5,"00,000")&"-"&TEXT(AE6-0.01,"00,000.00") -> 20,000-22,499.99 | F6: 2 | G6: =TEXT(AG5,"#0.00")&"-"&TEXT(AG6-0.001,"#0.000") -> 1.00-1.499 | H6: 2 | I6: =AI5*100&"%"&"-"&(AI6-0.0001)*100&"%" -> 10%-14.99% | J6: 2 | AA6: =AA5+0.01 -> 0.02 | AB6: 4 | AC6: =AC5+0.025 -> 0.05 | AD6: 4 | AE6: =AE5+2500 -> 22500 | AF6: 4 | AG6: =AG5+0.5 -> 1.5 | AH6: 4 | AI6: =AI5+0.05 -> 0.15 | AJ6: 4
A7: =TEXT(AA6,"#0.00")&"-"&TEXT(AA7-0.001,"#0.000") -> 0.02-0.029 | B7: 4 | C7: =AC6*100&"%"&"-"&(AC7-0.0001)*100&"%" -> 5%-7.49% | D7: 4 | E7: =TEXT(AE6,"00,000")&"-"&TEXT(AE7-0.01,"00,000.00") -> 22,500-24,999.99 | F7: 4 | G7: =TEXT(AG6,"#0.00")&"-"&TEXT(AG7-0.001,"#0.000") -> 1.50-1.999 | H7: 4 | I7: =AI6*100&"%"&"-"&(AI7-0.0001)*100&"%" -> 15%-19.99% | J7: 4 | AA7: =AA6+0.01 -> 0.03 | AB7: 6 | AC7: =AC6+0.025 -> 0.075 | AD7: 6 | AE7: =AE6+2500 -> 25000 | AF7: 6 | AG7: =AG6+0.5 -> 2 | AH7: 6 | AI7: =AI6+0.05 -> 0.2 | AJ7: 6
A8: 0.03-0.039 | B8: 6 | C8: 7.5%-9.99% | D8: 6 | E8: 25,000-27,499.99 | F8: 6 | G8: 2.00-2.499 | H8: 6 | I8: 20%-24.99% | J8: 6 | AA8: 0.04 | AB8: 8 | AC8: 0.1 | AD8: 8 | AE8: 27500 | AF8: 8 | AG8: 2.5 | AH8: 8 | AI8: 0.25 | AJ8: 8
A9: 0.04-0.049 | B9: 8 | C9: 10%-12.49% | D9: 8 | E9: 27,500-29,999.99 | F9: 8 | G9: 2.50-2.999 | H9: 8 | I9: 25%-29.99% | J9: 8 | AA9: 0.05 | AB9: 10 | AC9: 0.125 | AD9: 10 | AE9: 30000 | AF9: 10 | AG9: 3 | AH9: 10 | AI9: 0.3 | AJ9: 10
A10: 0.05-0.059 | B10: 10 | C10: 12.5%-14.99% | D10: 10 | E10: 30,000-32,499.99 | F10: 10 | G10: 3.00-3.499 | H10: 10 | I10: ="≥ "&AI9*100&"%" -> ≥ 30% | J10: 10 | AA10: 0.06 | AB10: 12 | AC10: 0.15 | AD10: 12 | AE10: 32500 | AF10: 12 | AG10: 3.5 | AH10: 12
A11: 0.06-0.069 | B11: 12 | C11: 15%-17.49% | D11: 12 | E11: 32,500-34,999.99 | F11: 12 | G11: 3.50-3.999 | H11: 12 | AA11: 0.07 | AB11: 14 | AC11: 0.175 | AD11: 14 | AE11: 35000 | AF11: 14 | AG11: 4 | AH11: 14
A12: 0.07-0.079 | B12: 14 | C12: 17.5%-19.99% | D12: 14 | E12: 35,000-37,499.99 | F12: 14 | G12: 4.00-4.499 | H12: 14 | AA12: 0.08 | AB12: 16 | AC12: 0.2 | AD12: 16 | AE12: 37500 | AF12: 16 | AG12: 4.5 | AH12: 16
A13: 0.08-0.089 | B13: 16 | C13: 20%-22.49% | D13: 16 | E13: 37,500-39,999.99 | F13: 16 | G13: 4.50-4.999 | H13: 16 | AA13: 0.09 | AB13: 18 | AC13: 0.225 | AD13: 18 | AE13: 40000 | AF13: 18 | AG13: 5 | AH13: 18
A14: 0.09-0.099 | B14: 18 | C14: 22.5%-24.99% | D14: 18 | E14: 40,000-42,499.99 | F14: 18 | G14: 5.00-5.499 | H14: 18 | AA14: 0.1 | AB14: 20 | AC14: 0.25 | AD14: 20 | AE14: 42500 | AF14: 20 | AG14: 5.5 | AH14: 20
A15: 0.10-0.109 | B15: 20 | C15: ="≥ "&AC14*100&"%" -> ≥ 25% | D15: 20 | E15: ="≥ "&TEXT(AE14,"00,000") -> ≥ 42,500 | F15: 20 | G15: ="≥ "&TEXT(AG14,"#0.00") -> ≥ 5.50 | H15: 20 | AA15: 0.11 | AB15: 22
A16: 0.11-0.119 | B16: 22 | AA16: 0.12 | AB16: 24
A17: 0.12-0.129 | B17: 24 | AA17: 0.13 | AB17: 26
A18: 0.13-0.139 | B18: 26 | AA18: 0.14 | AB18: 28
A19: 0.14-0.149 | B19: 28 | AA19: 0.15 | AB19: 30
A20: ="≥ "&TEXT(AA19,"#0.00") -> ≥ 0.15 | B20: 30
J24: Total Points
J26: =SUM(MAX(AB4:AB1000),MAX(AD4:AD1000),MAX(AF4:AF1000),MAX(AH4:AH1000),MAX(AJ4:AJ1000),MAX(AL4:AL1000),MAX(AN4:AN1000),MAX(AP4:AP1000),MAX(AR4:AR1000)) -> 100

Sheet RefTables (hidden)
A1: County Code | B1: District Number | D1: Ohio SHSP Emphasis Area | F1: FHWA SHSP Emphasis Area | H1: Improvement Type | I1: Access management | J1: Advanced technology and ITS | K1: Alignment | L1: Interchange design | M1: Intersection geometry | S1: MPH
A2: =LEFT(C2,3) -> ADA | B2: 9 | C2: ADA - Adams | D2: Serious Crash Types | F2: Creating more effective processes and safety management systems | H2: Access management | K2: Alignment - other | L2: Acceleration / deceleration / merge lane | S2: 5
A3: =LEFT(C3,3) -> ALL | B3: 1 | C3: ALL - Allen | D3: High Risk Drivers and Behaviors | F3: Curbing aggressive driving | H3: Advanced technology and ITS | I3: Access management - other | J3: AdvancedtechnologyandITS | K3: Horizontal curve realignment | L3: Convert at-grade intersection to interchange | M3: Auxiliary lanes - add acceleration lane | S3: =S2+5 -> 10
A4: ASD | B4: 3 | C4: ASD - Ashland | D4: Special Vehicles and Roadway Users | F4: Designing safer work zones | H4: Alignment | I4: Change in access - close or restrict existing access | J4: Advanced technology and ITS - other | K4: Horizontal and vertical alignment | L4: Extend existing lane on ramp | M4: Auxiliary lanes - add auxiliary through lane | S4: =S3+5 -> 15
A5: ATB | B5: 4 | C5: ATB - Ashtabula | D5: Data | F5: Enhancing emergency medical capabilities to increase survivability | H5: Animal-related | I5: Change in access - miscellaneous/unspecified | J5: Congestion detection / traffic monitoring system | K5: Vertical alignment or elevation change | L5: Improve intersection radius at ramp terminus | M5: Auxiliary lanes - add left-turn lane | S5: 20
A6: ATH | B6: 10 | C6: ATH - Athens | F6: Ensuring drivers are licensed and fully competent | H6: Interchange design | I6: Grassed median - extend existing | J6: Dynamic message signs | L6: Installation of new lane on ramp | M6: Auxiliary lanes - add right-turn lane | S6: 25
A7: AUG | B7: 7 | C7: AUG - Auglaize | F7: Ensuring safer bicycle travel | H7: Intersection geometry | I7: Median crossover - close crossover | J7: Over height vehicle detection | K7: Roadside | L7: Interchange design - other | M7: Auxiliary lanes - add right-turn lane (free-flow) | S7: 30
A8: BEL | B8: 11 | C8: BEL - Belmont | D8: Data | F8: Improving information and decision support systems | H8: Intersection traffic control | I8: Median crossover - directional crossover | L8: Ramp closure | M8: Auxiliary lanes - add slip lane | S8: 35
A9: BRO | B9: 9 | C9: BRO - Brown | D9: Timely Data | F9: Improving motorcycle safety and increasing motorcycle awareness | H9: Lighting | I9: Median crossover - relocate existing | K9: Barrier end treatments (crash cushions, terminals) | L9: Ramp metering | M9: Auxiliary lanes - add two-way left-turn lane | S9: 40
A10: BUT | B10: 8 | C10: BUT - Butler | D10: Reliable Data | F10: Improving the design and operation of highway intersections | H10: Miscellaneous | I10: Median crossover - unspecified | K10: Barrier transitions | M10: Auxiliary lanes - extend acceleration/deceleration lane | S10: 45
A11: CAR | B11: 11 | C11: CAR - Carroll | D11: Comprehensive Data | F11: Increasing driver safety awareness | H11: Non-infrastructure | I11: Raised island - install new | K11: Barrier - cable | M11: Auxiliary lanes - extend existing left-turn lane | S11: 50
A12: CHP | B12: 7 | C12: CHP - Champaign | D12: Integrated Data and Analysis Systems | F12: Increasing safety enhancements in vehicles | H12: Parking | I12: Raised island - modify existing | K12: Barrier - concrete | M12: Auxiliary lanes - extend existing right-turn lane | S12: =S11+5 -> 55
A13: CLA | B13: 7 | C13: CLA - Clark | F13: Increasing seat belt use and improving airbag effectiveness | H13: Pedestrians and bicyclists | I13: Raised island - remove existing | K13: Barrier- metal | M13: Auxiliary lanes - miscellaneous/other/unspecified | S13: 60
A14: CLE | B14: 8 | C14: CLE - Clermont | D14: SeriousCrashTypes | F14: Instituting graduated licensing for younger drivers | H14: Railroad grade crossings | I14: Raised island - unspecified | K14: Barrier - other | M14: Auxiliary lanes - modify acceleration lane | S14: 65
A15: CLI | B15: 8 | C15: CLI - Clinton | D15: Roadway Departure | F15: Keeping drivers alert | H15: Roadside | K15: Barrier - removal | M15: Auxiliary lanes - modify auxiliary through lane | S15: 70
A16: COL | B16: 11 | C16: COL - Columbiana | D16: Intersection | F16: Keeping vehicles in the roadway | H16: Roadway | K16: Curb or curb and gutter | M16: Auxiliary lanes - modify free-flow turn lane
A17: COS | B17: 5 | C17: COS - Coshocton | D17: Highway Railroad Crossing | F17: Making truck travel safer | H17: Roadway delineation | K17: Drainage improvements | M17: Auxiliary lanes - modify left-turn lane offset
A18: CRA | B18: 3 | C18: CRA - Crawford | F18: Making walking and street crossing easier | H18: Roadway signs and traffic control | K18: Fencing | M18: Auxiliary lanes - modify right-turn lane offset
A19: CUY | B19: 12 | C19: CUY - Cuyahoga | F19: Minimizing the consequences of leaving the road | H19: Shoulder treatments | K19: Removal of roadside objects (trees, poles, etc.) | M19: Auxiliary lanes - modify turn lane storage
A20: DAR | B20: 7 | C20: DAR - Darke | D20: HighRiskDriversandBehaviors | F20: Reducing head-on and across-median crashes | H20: Speed management | K20: Roadside grading | M20: Auxiliary lanes - modify turn lane taper
A21: DEF | B21: 1 | C21: DEF - Defiance | D21: Impaired Drivers | F21: Reducing impaired driving | H21: Work Zone | K21: Roadside - other | M21: Auxiliary lanes - modify two-way left-turn lane
A22: DEL | B22: 6 | C22: DEL - Delaware | D22: Seat Belt | F22: Reducing vehicle-train crashes | M22: Intersection geometrics - miscellaneous/other/unspecified
A23: ERI | B23: 3 | C23: ERI - Erie | D23: Speed | F23: Sustaining proficiency in older drivers | M23: Intersection geometrics - modify intersection corner radius
A24: FAI | B24: 5 | C24: FAI - Fairfield | D24: Young Drivers | F24: Other | H24: Animal-related | I24: Intersection traffic control | J24: Lighting | K24: Roadway | M24: Intersection geometrics - modify skew angle
A25: FAY | B25: 6 | C25: FAY - Fayette | D25: Older Drivers | M25: Intersection geometrics - realignment to align offset cross streets
A26: FRA | B26: 6 | C26: FRA - Franklin | D26: Distracted Drivers | F26: Functional Class | I26: Intersection flashers - add "when flashing" warning sign-mounted | J26: Continuous roadway lighting | K26: Install / remove / modify passing zone | M26: Intersection geometrics - realignment to increase cross street offset
A27: FUL | B27: 2 | C27: FUL - Fulton | E27: 1 | F27: 1 - Interstates | I27: Intersection flashers - add advance emergency vehicle warning sign-mounted | J27: Intersection lighting | K27: Pavement surface - high friction surface | M27: Intersection geometrics - re-assign existing lane use
A28: GAL | B28: 10 | C28: GAL - Gallia | D28: SpecialVehiclesandRoadwayUsers | E28: 2 | F28: 2 - Other Freeways or Expressways | I28: Intersection flashers - add advance heavy vehicle warning sign-mounted | J28: Lighting - other | K28: Pavement surface - miscellaneous | M28: Intersection geometry - other
A29: GEA | B29: 12 | C29: GEA - Geauga | D29: Bicycle Riders | E29: 3 | F29: 3 - Other Principal Arterial Roadway | I29: Intersection flashers - add advance intersection warning sign-mounted | J29: Site lighting - horizontal curve | K29: Roadway narrowing (road diet, roadway reconfiguration) | M29: Splitter island - install on one or more approaches
A30: GRE | B30: 8 | C30: GRE - Greene | D30: Pedestrians | E30: 4 | F30: 4 - Minor Arterial Roadway | I30: Intersection flashers - add miscellaneous/other/unspecified | J30: Site lighting - intersection | K30: Roadway - other | M30: Splitter island - remove from one or more approaches
A31: GUE | B31: 5 | C31: GUE - Guernsey | D31: Commercial Vehicles | E31: 5 | F31: 5 - Major Collector Roadway | I31: Intersection flashers - add overhead (actuated) | J31: Site lighting - interchange | K31: Roadway - restripe to revise separation between opposing lanes and/or shoulder widths | M31: Splitter island - unspecified
A32: HAM | B32: 8 | C32: HAM - Hamilton | D32: Motorcycles | E32: 6 | F32: 6 - Minor Collector Roadway | I32: Intersection flashers - add overhead (continuous) | J32: Site lighting - pedestrian crosswalk | K32: Roadway widening - add lane(s) along segment | M32: Through lanes - add additional through lane
A33: HAN | B33: 1 | C33: HAN - Hancock | E33: 7 | F33: 7 - Local Roadway | I33: Intersection flashers - add stop sign-mounted | K33: Roadway widening - curve
A34: HAR | B34: 1 | C34: HAR - Hardin | E34: 99 | F34: 99 - Other Roadway | I34: Intersection flashers - modify existing | K34: Roadway widening - travel lanes
A35: HAS | B35: 11 | C35: HAS - Harrison | I35: Intersection flashers - remove existing | J35: Parking | K35: Rumble strips - center
A36: HEN | B36: 2 | C36: HEN - Henry | I36: Intersection signing - add basic advance warning | K36: Rumble strips - edge or shoulder
A37: HIG | B37: 9 | C37: HIG - Highland | I37: Intersection signing - add enhanced advance warning (double-up and/or oversize) | J37: Modify parking | K37: Rumble strips - transverse
A38: HOC | B38: 10 | C38: HOC - Hocking | I38: Intersection signing - add enhanced regulatory sign (double-up and/or oversize) | J38: Parking - other | K38: Rumble strips - unspecified or other
A39: HOL | B39: 11 | C39: HOL - Holmes | I39: Intersection signing - miscellaneous/other/unspecified | J39: Remove parking | K39: Superelevation / cross slope
A40: HUR | B40: 3 | C40: HUR - Huron | I40: Intersection signing - relocate existing regulatory sign | J40: Restrict parking
A41: JAC | B41: 9 | C41: JAC - Jackson | I41: Intersection traffic control - other | J41: Truck parking facilities
A42: JEF | B42: 11 | C42: JEF - Jefferson | I42: Modify control - all-way stop to roundabout
A43: KNO | B43: 5 | C43: KNO - Knox | I43: Modify control - modifications to roundabout | J43: Pedestrians and bicyclists | K43: Roadway delineation
A44: LAK | B44: 12 | C44: LAK - Lake | I44: Modify control - no control to roundabout
A45: LAW | B45: 9 | C45: LAW - Lawrence | I45: Modify control - no control to two-way stop | J45: Crosswalk | K45: Improve retroreflectivity
A46: LIC | B46: 5 | C46: LIC - Licking | I46: Modify control - remove right-turn yield | J46: Install new "smart" crosswalk | K46: Longitudinal pavement markings - new
A47: LOG | B47: 7 | C47: LOG - Logan | I47: Modify control - reverse priority of stop condition | J47: Install new crosswalk | K47: Longitudinal pavement markings - remarking
A48: LOR | B48: 3 | C48: LOR - Lorain | I48: Modify control - traffic signal to roundabout | J48: Install sidewalk | K48: Delineators post-mounted or on barrier
A49: LUC | B49: 2 | C49: LUC - Lucas | I49: Modify control - two-way stop to all-way stop | J49: Medians and pedestrian refuge areas | K49: Raised pavement markers
A50: MAD | B50: 6 | C50: MAD - Madison | I50: Modify control - two-way stop to signal operation | J50: Miscellaneous pedestrians and bicyclists | K50: Roadway delineation - other
A51: MAH | B51: 4 | C51: MAH - Mahoning | I51: Modify control - two-way stop to roundabout | J51: Modify existing crosswalk
A52: MAR | B52: 6 | C52: MAR - Marion | I52: Modify control - two-way yield to two-way stop | J52: Pedestrian beacons
A53: MED | B53: 3 | C53: MED - Medina | I53: Pavement Markings - add advance signal ahead | J53: Pedestrian bridge | K53: Roadway signs and traffic control
A54: MEG | B54: 10 | C54: MEG - Meigs | I54: Pavement markings - add advance stop ahead | J54: Pedestrian signal
A55: MER | B55: 7 | C55: MER - Mercer | I55: Pavement markings - add dashed edge line along mainline | J55: Pedestrian signal - audible device | K55: Curve-related warning signs and flashers
A56: MIA | B56: 7 | C56: MIA - Miami | I56: Pavement markings - add lane use symbols | J56: Pedestrian signal - Pedestrian Hybrid Beacon | K56: Sign sheeting - upgrade or replacement
A57: MOE | B57: 10 | C57: MOE - Monroe | I57: Pavement markings - add stop line | J57: Pedestrian signal - install new at intersection | K57: Roadway signs and traffic control - other
A58: MOT | B58: 7 | C58: MOT - Montgomery | I58: Pavement markings - add yield line | J58: Pedestrian signal - install new at non-intersection location | K58: Roadway signs (including post) - new or updated
A59: MRG | B59: 10 | C59: MRG - Morgan | I59: Pavement markings - miscellaneous/other/unspecified | J59: Pedestrian signal - modify existing
A60: MRW | B60: 6 | C60: MRW - Morrow | I60: Pavement markings - refresh existing pavement markings | J60: Pedestrian signal - remove existing
A61: MUS | B61: 5 | C61: MUS - Muskingum | I61: Modify traffic signal - add additional signal heads | J61: Pedestrian warning signs - add/modify flashers
A62: NOB | B62: 10 | C62: NOB - Noble | I62: Modify traffic signal - add backplates | J62: Pedestrian warning signs - overhead
A63: OTT | B63: 2 | C63: OTT - Ottawa | I63: Modify traffic signal - add backplates with retroreflective borders
A64: PAU | B64: 1 | C64: PAU - Paulding | I64: Modify traffic signal - add closed loop system | J64: Railroad grade crossings
A65: PER | B65: 5 | C65: PER - Perry | I65: Modify traffic signal - add emergency vehicle preemption
A66: PIC | B66: 6 | C66: PIC - Pickaway | I66: Modify traffic signal - add flashing yellow arrow | J66: Grade separation
A67: =LEFT(C67,3) -> PIK | B67: 9 | C67: PIK - Pike | I67: Modify traffic signal - add long vehicle detection | J67: Model enforcement activity
A68: POR | B68: 4 | C68: POR - Portage | I68: Modify traffic signal - add railroad preemption | J68: Protective devices
A69: PRE | B69: 8 | C69: PRE - Preble | I69: Modify traffic signal - add wireless system | J69: Railroad grade crossing gates
A70: PUT | B70: 1 | C70: PUT - Putnam | I70: Modify traffic signal - miscellaneous/other/unspecified | J70: Railroad grade crossing signing
A71: RIC | B71: 3 | C71: RIC - Richland | I71: Modify traffic signal - modernization/replacement | J71: Railroad grade crossings - other | K71: Speed management
A72: ROS | B72: 9 | C72: ROS - Ross | I72: Modify traffic signal - modify signal mounting (spanwire to mast arm) | J72: Surface treatment
A73: SAN | B73: 2 | C73: SAN - Sandusky | I73: Modify traffic signal - remove existing signal | J73: Upgrade railroad crossing signal | K73: Modify speed limit
A74: SCI | B74: 9 | C74: SCI - Scioto | I74: Modify traffic signal - replace existing indications (incandescent-to-LED and/or 8-to-12 inch dia.) | J74: Widen crossing for additional lane | K74: Radar speed signs
A75: SEN | B75: 2 | C75: SEN - Seneca | I75: Modify traffic signal timing - left-turn phasing (permissive to protected/permissive) | K75: Speed detection system / truck warning
A76: SHE | B76: 7 | C76: SHE - Shelby | I76: Modify traffic signal timing - left-turn phasing (permissive to protected-only) | K76: Speed management - other
A77: STA | B77: 4 | C77: STA - Stark | I77: Modify traffic signal timing - adjust clearance interval (yellow change and/or all-red) | K77: Traffic calming feature
A78: SUM | B78: 4 | C78: SUM - Summit | I78: Modify traffic signal timing - general retiming
A79: TRU | B79: 4 | C79: TRU - Trumbull | I79: Modify traffic signal timing - signal coordination
A80: TUS | B80: 11 | C80: TUS - Tuscarawas | I80: Systemic improvements - signal-controlled
A81: UNI | B81: 6 | C81: UNI - Union | I81: Systemic improvements - stop-controlled | J81: Miscellaneous
A82: VAN | B82: 1 | C82: VAN - Van Wert
A83: VIN | B83: 10 | C83: VIN - Vinton
A84: WAR | B84: 8 | C84: WAR - Warren
A85: WAS | B85: 10 | C85: WAS - Washington | H85: Non-infrastructure | I85: Shoulder treatments | J85: Work Zone
A86: WAY | B86: 3 | C86: WAY - Wayne | H86: Educational efforts | I86: Widen shoulder – paved or other
A87: WIL | B87: 2 | C87: WIL - Williams | H87: Enforcement | I87: Pave existing shoulders
A88: WOO | B88: 2 | C88: WOO - Wood | H88: Data/traffic records | I88: Shoulder grading
A89: WYA | B89: 1 | C89: WYA - Wyandot | H89: Non-infrastructure - other | I89: Shoulder treatments - other
H90: Outreach
H91: Road safety audits
H92: Training and workforce development
H93: Transportation safety planning

Sheet RSI_Data (hidden)
E1: =F1/G1 -> 34119.62388 | F1: =SUBTOTAL(9,F3:F86584) -> 46938537169 | G1: =SUBTOTAL(9,G3:G86584) -> 1375705
A2: DISTRICT_NBR | B2: NLF_COUNTY_CD | C2: URBAN_AREA | D2: FREEWAY_IND | E2: CRASH_TYPE_CD | F2: CRASH_COST_NBR | G2: Crash_Count | J2: Select
A3: 6 | B3: FAY | C3: Yes | D3: Yes | E3: Rear End | F3: 185130 | G3: 3 | J3: --CRASH_YR,
A4: 4 | B4: MAH | C4: No | D4: Yes | E4: Pedestrian | F4: 622814 | G4: 3 | J4: DISTRICT_NBR,
A5: 12 | B5: LAK | C5: No | D5: Yes | E5: Parked Vehicle | F5: 537344 | G5: 6 | J5: NLF_COUNTY_CD,
A6: 7 | B6: SHE | C6: Yes | D6: No | E6: Sideswipe - Passing | F6: 89100 | G6: 5
A7: 10 | B7: ATH | C7: Yes | D7: Yes | E7: Fixed Object | F7: 69135 | G7: 1 | J7: --CASE WHEN ODOT_MAINTAINED_HWY_IND = 'Y' THEN 'Yes'
A8: 7 | B8: CHP | C8: Yes | D8: No | E8: Pedalcycles | F8: 782204 | G8: 7 | J8: --ELSE 'No' END AS ODOT_MAINTAINED_HWY_IND,
A9: 12 | B9: GEA | C9: No | D9: No | E9: Unknown | F9: 195855 | G9: 13
A10: 11 | B10: COL | C10: Yes | D10: Yes | E10: Rear End | F10: 1489559 | G10: 65 | J10: CASE WHEN AREA_CODE = 'CLEVE' THEN 'Yes'
A11: 3 | B11: MED | C11: No | D11: Yes | E11: Other Object | F11: 364815 | G11: 29 | J11: WHEN AREA_CODE = 'YOUNG' THEN 'Yes'
A12: 1 | B12: HAR | C12: Yes | D12: No | E12: Overturning | F12: 484544 | G12: 1 | J12: WHEN AREA_CODE = 99999 THEN 'No'
A13: 4 | B13: SUM | C13: Yes | D13: Yes | E13: Parked Vehicle | F13: 10560 | G13: 1 | J13: ELSE 'Yes' END AS URBAN_AREA,
A14: 1 | B14: PUT | C14: No | D14: No | E14: Backing | F14: 564300 | G14: 50
A15: 3 | B15: WAY | C15: Yes | D15: Yes | E15: Angle | F15: 21120 | G15: 2 | J15: --CASE WHEN FUNCTIONAL_CLASS_CD = 1 THEN 'Interstate Route'
A16: 6 | B16: MAR | C16: No | D16: No | E16: Left Turn | F16: 5685638 | G16: 90 | J16: --WHEN FUNCTIONAL_CLASS_CD = 2 THEN 'Other Freeways or Expressways'
A17: 2 | B17: SAN | C17: Yes | D17: No | E17: Sideswipe - Passing | F17: 4393272 | G17: 172 | J17: --WHEN FUNCTIONAL_CLASS_CD = 3 THEN 'Other Principal Arterial Roads'
A18: 8 | B18: GRE | C18: No | D18: Yes | E18: Rear End | F18: 6186682 | G18: 101 | J18: --WHEN FUNCTIONAL_CLASS_CD = 4 THEN 'Minor Arterial Roads'
A19: 3 | B19: MED | C19: Yes | D19: Yes | E19: Animal | F19: 358875 | G19: 25 | J19: --WHEN FUNCTIONAL_CLASS_CD = 5 THEN 'Major Collector Roads'
A20: 12 | B20: LAK | C20: Yes | D20: No | E20: Rear End | F20: 2342175 | G20: 105 | J20: --WHEN FUNCTIONAL_CLASS_CD = 6 THEN 'Minor Collector Roads'
A21: 8 | B21: PRE | C21: Yes | D21: No | E21: Pedestrian | F21: 784514 | G21: 8 | J21: --WHEN FUNCTIONAL_CLASS_CD = 7 THEN 'Local Roads' END AS FUNCTIONAL_CLASS_CD,
A22: 6 | B22: MAD | C22: Yes | D22: No | E22: Parked Vehicle | F22: 2016178 | G22: 61
A23: 9 | B23: ROS | C23: Yes | D23: No | E23: Right Turn | F23: 42240 | G23: 4 | J23: CASE WHEN FREEWAY_IND = 'N' THEN 'No'
A24: 4 | B24: ATB | C24: Yes | D24: Yes | E24: Sideswipe - Passing | F24: 42240 | G24: 4 | J24: WHEN FREEWAY_IND = 'Y' THEN 'Yes' END AS FREEWAY_IND,
A25: 4 | B25: SUM | C25: Yes | D25: Yes | E25: Overturning | F25: 69135 | G25: 1
A26: 10 | B26: GAL | C26: Yes | D26: No | E26: Other Non-Collision | F26: 158235 | G26: 6 | J26: CASE WHEN CRASH_TYPE_CD = 0 THEN 'Unknown'
A27: 9 | B27: ROS | C27: Yes | D27: No | E27: Other Non-Collision | F27: 921794 | G27: 21 | J27: WHEN CRASH_TYPE_CD = 1 THEN 'Head On'
A28: 5 | B28: FAI | C28: Yes | D28: Yes | E28: Other Object | F28: 21120 | G28: 2 | J28: WHEN CRASH_TYPE_CD = 2 THEN 'Rear End'
A29: 4 | B29: TRU | C29: No | D29: No | E29: Sideswipe - Passing | F29: 8039381 | G29: 237 | J29: WHEN CRASH_TYPE_CD = 3 THEN 'Backing'
A30: 5 | B30: LIC | C30: Yes | D30: Yes | E30: Backing | F30: 10560 | G30: 1 | J30: WHEN CRASH_TYPE_CD = 4 THEN 'Sideswipe - Meeting'
A31: 6 | B31: DEL | C31: No | D31: Yes | E31: Pedestrian | F31: 10560 | G31: 1 | J31: WHEN CRASH_TYPE_CD = 5 THEN 'Sideswipe - Passing'
A32: 8 | B32: PRE | C32: No | D32: Yes | E32: Right Turn | F32: 10560 | G32: 1 | J32: WHEN CRASH_TYPE_CD = 6 THEN 'Angle'
A33: 6 | B33: FRA | C33: Yes | D33: No | E33: Other Non-Collision | F33: 2757132 | G33: 53 | J33: WHEN CRASH_TYPE_CD = 7 THEN 'Parked Vehicle'
A34: 6 | B34: FAY | C34: No | D34: No | E34: Right Turn | F34: 976904 | G34: 22 | J34: WHEN CRASH_TYPE_CD = 8 THEN 'Pedestrian'
A35: 3 | B35: CRA | C35: Yes | D35: Yes | E35: Rear End | F35: 52800 | G35: 5 | J35: WHEN CRASH_TYPE_CD = 9 THEN 'Animal'
A36: 9 | B36: LAW | C36: Yes | D36: Yes | E36: Unknown | F36: 52800 | G36: 5 | J36: WHEN CRASH_TYPE_CD = 10 THEN 'Train'
A37: 4 | B37: ATB | C37: No | D37: Yes | E37: Other Object | F37: 706304 | G37: 22 | J37: WHEN CRASH_TYPE_CD = 11 THEN 'Pedalcycles'
A38: 3 | B38: WAY | C38: Yes | D38: No | E38: Animal | F38: 10560 | G38: 1 | J38: WHEN CRASH_TYPE_CD = 12 THEN 'Other Non-Vehicle'
A39: 3 | B39: RIC | C39: No | D39: Yes | E39: Other Non-Collision | F39: 822464 | G39: 33 | J39: WHEN CRASH_TYPE_CD = 13 THEN 'Fixed Object'
A40: 11 | B40: TUS | C40: Yes | D40: No | E40: Fixed Object | F40: 669839 | G40: 13 | J40: WHEN CRASH_TYPE_CD = 14 THEN 'Other Object'
A41: 4 | B41: ATB | C41: No | D41: No | E41: Unknown | F41: 664064 | G41: 18 | J41: WHEN CRASH_TYPE_CD = 15 THEN 'Falling From Or In Vehicle'
A42: 6 | B42: MAR | C42: Yes | D42: No | E42: Rear End | F42: 42240 | G42: 4 | J42: WHEN CRASH_TYPE_CD = 16 THEN 'Overturning'
A43: 4 | B43: ATB | C43: Yes | D43: No | E43: Rear End | F43: 21120 | G43: 2 | J43: WHEN CRASH_TYPE_CD = 17 THEN 'Other Non-Collision'
A44: 6 | B44: FRA | C44: Yes | D44: Yes | E44: Head On | F44: 10560 | G44: 1 | J44: WHEN CRASH_TYPE_CD = 18 THEN 'Left Turn'
A45: 6 | B45: FAY | C45: Yes | D45: No | E45: Head On | F45: 1361189 | G45: 28 | J45: WHEN CRASH_TYPE_CD = 19 THEN 'Right Turn' END AS CRASH_TYPE_CD,
A46: 6 | B46: FAY | C46: Yes | D46: No | E46: Train | F46: 10560 | G46: 1
A47: 4 | B47: SUM | C47: Yes | D47: Yes | E47: Fixed Object | F47: 179355 | G47: 8 | J47: sum(CASE WHEN CRASH_SEVERITY_CD = '1' THEN 484544
A48: 1 | B48: HAN | C48: No | D48: No | E48: Head On | F48: 5470851 | G48: 47 | J48: WHEN CRASH_SEVERITY_CD = '2' THEN 484544
A49: 1 | B49: HAN | C49: No | D49: No | E49: Train | F49: 79695 | G49: 2 | J49: WHEN CRASH_SEVERITY_CD = '3' THEN 69135
A50: 8 | B50: BUT | C50: Yes | D50: No | E50: Head On | F50: 8322094 | G50: 102 | J50: WHEN CRASH_SEVERITY_CD = '4' THEN 46860
A51: 1 | B51: ALL | C51: Yes | D51: Yes | E51: Fixed Object | F51: 10571991 | G51: 311 | J51: ELSE 10560 END ) AS CRASH_COST_NBR -- 2022 VALUES
A52: 3 | B52: CRA | C52: Yes | D52: No | E52: Overturning | F52: 622814 | G52: 3
A53: 2 | B53: SAN | C53: Yes | D53: No | E53: Backing | F53: 407055 | G53: 33 | J53: ,count(DOCUMENT_NBR) as Crash_Count
A54: 3 | B54: HUR | C54: Yes | D54: No | E54: Unknown | F54: 21120 | G54: 2
A55: 6 | B55: PIC | C55: Yes | D55: No | E55: Animal | F55: 812955 | G55: 68 | J55: From warehouse.dbo.oh1_cr_crash_details
A56: 12 | B56: GEA | C56: Yes | D56: No | E56: Pedestrian | F56: 574799 | G56: 4 | J56: where CRASH_YR BETWEEN 2018 AND 2022
A57: 6 | B57: UNI | C57: Yes | D57: No | E57: Animal | F57: 1239975 | G57: 105 | J57: Group by --CRASH_YR,
A58: 10 | B58: HOC | C58: No | D58: Yes | E58: Overturning | F58: 194535 | G58: 6 | J58: DISTRICT_NBR,
A59: 6 | B59: PIC | C59: No | D59: No | E59: Animal | F59: 9331783 | G59: 684 | J59: NLF_COUNTY_CD,
A60: 5 | B60: LIC | C60: Yes | D60: Yes | E60: Backing | F60: 143055 | G60: 8 | J60: AREA_CODE,
A61: 8 | B61: WAR | C61: Yes | D61: No | E61: Angle | F61: 2931103 | G61: 66 | J61: --ODOT_MAINTAINED_HWY_IND,
A62: 9 | B62: HIG | C62: Yes | D62: No | E62: Backing | F62: 395340 | G62: 34 | J62: --FUNCTIONAL_CLASS_CD,
A63: 4 | B63: SUM | C63: Yes | D63: No | E63: Left Turn | F63: 985875 | G63: 45 | J63: FREEWAY_IND,
A64: 12 | B64: CUY | C64: No | D64: Yes | E64: Angle | F64: 373890 | G64: 14 | J64: CRASH_TYPE_CD
A65: 9 | B65: HIG | C65: Yes | D65: No | E65: Overturning | F65: 90255 | G65: 3
A66: 2 | B66: SEN | C66: Yes | D66: No | E66: Sideswipe - Passing | F66: 6533652 | G66: 325
A67: 12 | B67: GEA | C67: No | D67: No | E67: Backing | F67: 3031484 | G67: 155
A68: 4 | B68: SUM | C68: Yes | D68: Yes | E68: Overturning | F68: 7788649 | G68: 75
A69: 7 | B69: SHE | C69: Yes | D69: No | E69: Angle | F69: 15637143 | G69: 471
A70: 4 | B70: ATB | C70: Yes | D70: No | E70: Falling From Or In Vehicle | F70: 484544 | G70: 1
A71: 5 | B71: COS | C71: Yes | D71: No | E71: Left Turn | F71: 46860 | G71: 1
A72: 9 | B72: ADA | C72: Yes | D72: No | E72: Animal | F72: 46860 | G72: 1
A73: 8 | B73: GRE | C73: No | D73: No | E73: Head On | F73: 9817801 | G73: 95
A74: 8 | B74: GRE | C74: No | D74: No | E74: Train | F74: 46860 | G74: 1
A75: 3 | B75: HUR | C75: Yes | D75: No | E75: Animal | F75: 190080 | G75: 18
A76: 12 | B76: CUY | C76: Yes | D76: Yes | E76: Rear End | F76: 1976535 | G76: 101
A77: 5 | B77: GUE | C77: No | D77: No | E77: Rear End | F77: 2768969 | G77: 81
A78: 12 | B78: GEA | C78: Yes | D78: No | E78: Pedalcycles | F78: 90255 | G78: 3
A79: 3 | B79: WAY | C79: Yes | D79: No | E79: Unknown | F79: 100815 | G79: 4
A80: 4 | B80: STA | C80: Yes | D80: Yes | E80: Unknown | F80: 10560 | G80: 1
A81: 3 | B81: LOR | C81: Yes | D81: Yes | E81: Left Turn | F81: 236775 | G81: 10
A82: 9 | B82: JAC | C82: Yes | D82: No | E82: Sideswipe - Passing | F82: 69135 | G82: 1
A83: 2 | B83: SEN | C83: Yes | D83: No | E83: Sideswipe - Meeting | F83: 10560 | G83: 1
A84: 6 | B84: UNI | C84: Yes | D84: No | E84: Backing | F84: 141900 | G84: 10
A85: 2 | B85: SAN | C85: No | D85: No | E85: Right Turn | F85: 955784 | G85: 20
A86: 2 | B86: HEN | C86: Yes | D86: Yes | E86: Overturning | F86: 484544 | G86: 1
A87: 4 | B87: STA | C87: Yes | D87: No | E87: Animal | F87: 17829839 | G87: 1383
A88: 7 | B88: MOT | C88: No | D88: Yes | E88: Pedestrian | F88: 1026508 | G88: 4
A89: 11 | B89: COL | C89: Yes | D89: No | E89: Sideswipe - Passing | F89: 634425 | G89: 40
A90: 0 | B90: CUY | C90: Yes | D90: No | E90: Rear End | F90: 21120 | G90: 2
A91: 5 | B91: GUE | C91: No | D91: No | E91: Fixed Object | F91: 40018518 | G91: 849
A92: 10 | B92: NOB | C92: No | D92: No | E92: Unknown | F92: 52800 | G92: 5
A93: 2 | B93: SAN | C93: Yes | D93: No | E93: Sideswipe - Meeting | F93: 10560 | G93: 1
A94: 2 | B94: OTT | C94: Yes | D94: No | E94: Animal | F94: 274560 | G94: 26
A95: 5 | B95: GUE | C95: Yes | D95: No | E95: Angle | F95: 195690 | G95: 4
A96: 9 | B96: JAC | C96: Yes | D96: No | E96: Rear End | F96: 10560 | G96: 1
A97: 3 | B97: MED | C97: Yes | D97: No | E97: Fixed Object | F97: 9796100 | G97: 241
A98: 9 | B98: JAC | C98: Yes | D98: No | E98: Animal | F98: 10560 | G98: 1
A99: 2 | B99: WOO | C99: Yes | D99: No | E99: Overturning | F99: 318780 | G99: 8
A100: 2 | B100: SAN | C100: Yes | D100: No | E100: Pedestrian | F100: 4071443 | G100: 18
A101: 8 | B101: CLI | C101: Yes | D101: Yes | E101: Left Turn | F101: 10560 | G101: 1
A102: 3 | B102: MED | C102: Yes | D102: No | E102: Right Turn | F102: 121935 | G102: 6
A103: 8 | B103: BUT | C103: Yes | D103: Yes | E103: Unknown | F103: 331980 | G103: 28
A104: 6 | B104: FRA | C104: Yes | D104: Yes | E104: Left Turn | F104: 9929090 | G104: 210
A105: 4 | B105: SUM | C105: Yes | D105: Yes | E105: Right Turn | F105: 46860 | G105: 1
A106: 12 | B106: LAK | C106: Yes | D106: No | E106: Fixed Object | F106: 3448586 | G106: 100
A107: 8 | B107: GRE | C107: No | D107: Yes | E107: Fixed Object | F107: 4476640 | G107: 97
A108: 3 | B108: RIC | C108: Yes | D108: No | E108: Rear End | F108: 201630 | G108: 8
A109: 6 | B109: FAY | C109: Yes | D109: Yes | E109: Fixed Object | F109: 1338358 | G109: 19
A110: 3 | B110: RIC | C110: Yes | D110: Yes | E110: Rear End | F110: 8489440 | G110: 222
A111: 1 | B111: HAR | C111: No | D111: No | E111: Rear End | F111: 2749603 | G111: 71
A112: 11 | B112: JEF | C112: Yes | D112: Yes | E112: Overturning | F112: 46860 | G112: 1
A113: 6 | B113: DEL | C113: Yes | D113: No | E113: Other Object | F113: 606375 | G113: 45
A114: 10 | B114: HOC | C114: No | D114: No | E114: Pedalcycles | F114: 531404 | G114: 2
A115: 9 | B115: PIK | C115: Yes | D115: No | E115: Angle | F115: 12196502 | G115: 256
A116: 4 | B116: ATB | C116: Yes | D116: Yes | E116: Overturning | F116: 495104 | G116: 2
A117: 11 | B117: BEL | C117: Yes | D117: No | E117: Sideswipe - Meeting | F117: 516224 | G117: 4
A118: 2 | B118: WOO | C118: Yes | D118: No | E118: Sideswipe - Passing | F118: 8476136 | G118: 440
A119: 3 | B119: CRA | C119: Yes | D119: Yes | E119: Other Object | F119: 105600 | G119: 10
A120: 11 | B120: JEF | C120: No | D120: Yes | E120: Overturning | F120: 57420 | G120: 2
A121: 5 | B121: COS | C121: Yes | D121: No | E121: Head On | F121: 46860 | G121: 1
A122: 11 | B122: TUS | C122: Yes | D122: No | E122: Rear End | F122: 153615 | G122: 9
A123: 10 | B123: VIN | C123: No | D123: No | E123: Head On | F123: 4694422 | G123: 30
A124: 10 | B124: MOE | C124: No | D124: Yes | E124: Angle | F124: 46860 | G124: 1
A125: 4 | B125: SUM | C125: Yes | D125: Yes | E125: Other Object | F125: 10560 | G125: 1
A126: 9 | B126: ADA | C126: No | D126: No | E126: Sideswipe - Passing | F126: 5445893 | G126: 108
A127: 7 | B127: CLA | C127: Yes | D127: No | E127: Right Turn | F127: 8222219 | G127: 391
A128: 7 | B128: MOT | C128: Yes | D128: No | E128: Angle | F128: 3815338 | G128: 127
A129: 8 | B129: HAM | C129: Yes | D129: Yes | E129: Backing | F129: 78540 | G129: 4
A130: 3 | B130: RIC | C130: Yes | D130: Yes | E130: Overturning | F130: 757185 | G130: 26
A131: 2 | B131: FUL | C131: No | D131: No | E131: Parked Vehicle | F131: 1590044 | G131: 51
A132: 9 | B132: JAC | C132: No | D132: No | E132: Fixed Object | F132: 41021363 | G132: 898
A133: 6 | B133: FRA | C133: Yes | D133: Yes | E133: Parked Vehicle | F133: 69135 | G133: 1
A134: 8 | B134: BUT | C134: No | D134: Yes | E134: Left Turn | F134: 100815 | G134: 4
A135: 3 | B135: HUR | C135: Yes | D135: No | E135: Animal | F135: 31680 | G135: 3
A136: 11 | B136: TUS | C136: Yes | D136: Yes | E136: Head On | F136: 2038991 | G136: 8
A137: 6 | B137: PIC | C137: No | D137: No | E137: Pedalcycles | F137: 785669 | G137: 6
A138: 4 | B138: SUM | C138: Yes | D138: No | E138: Left Turn | F138: 10560 | G138: 1
A139: 1 | B139: DEF | C139: Yes | D139: No | E139: Left Turn | F139: 4221177 | G139: 115
A140: 10 | B140: ATH | C140: No | D140: No | E140: Other Object | F140: 147840 | G140: 14
A141: 7 | B141: MOT | C141: Yes | D141: Yes | E141: Rear End | F141: 423060 | G141: 11
A142: 4 | B142: POR | C142: Yes | D142: No | E142: Right Turn | F142: 1724910 | G142: 106
A143: 8 | B143: CLI | C143: Yes | D143: No | E143: Backing | F143: 606540 | G143: 54
A144: 3 | B144: WAY | C144: Yes | D144: Yes | E144: Sideswipe - Passing | F144: 31680 | G144: 3
A145: 7 | B145: LOG | C145: Yes | D145: No | E145: Rear End | F145: 2542363 | G145: 82
A146: 6 | B146: UNI | C146: Yes | D146: Yes | E146: Overturning | F146: 231990 | G146: 4
A147: 4 | B147: POR | C147: No | D147: Yes | E147: Overturning | F147: 237930 | G147: 8
A148: 6 | B148: FRA | C148: Yes | D148: No | E148: Parked Vehicle | F148: 46860 | G148: 1
A149: 2 | B149: HEN | C149: Yes | D149: Yes | E149: Rear End | F149: 663899 | G149: 9
A150: 6 | B150: UNI | C150: Yes | D150: No | E150: Pedalcycles | F150: 459360 | G150: 11
A151: 11 | B151: JEF | C151: No | D151: No | E151: Rear End | F151: 2647199 | G151: 89
A152: 10 | B152: HOC | C152: No | D152: No | E152: Animal | F152: 5073011 | G152: 220
A153: 7 | B153: AUG | C153: Yes | D153: No | E153: Fixed Object | F153: 3991271 | G153: 121
A154: 8 | B154: CLE | C154: Yes | D154: Yes | E154: Overturning | F154: 484544 | G154: 1
A155: 12 | B155: CUY | C155: Yes | D155: No | E155: Rear End | F155: 179355 | G155: 8
A156: 2 | B156: WIL | C156: No | D156: No | E156: Pedalcycles | F156: 1244473 | G156: 8
A157: 10 | B157: HOC | C157: Yes | D157: No | E157: Animal | F157: 10560 | G157: 1
A158: 7 | B158: DAR | C158: Yes | D158: No | E158: Left Turn | F158: 31680 | G158: 3
A159: 10 | B159: MEG | C159: Yes | D159: No | E159: Overturning | F159: 574799 | G159: 4
A160: 9 | B160: ROS | C160: Yes | D160: Yes | E160: Rear End | F160: 5454613 | G160: 152
A161: 3 | B161: HUR | C161: Yes | D161: No | E161: Fixed Object | F161: 1171604 | G161: 37
A162: 1 | B162: VAN | C162: Yes | D162: No | E162: Fixed Object | F162: 2342157 | G162: 38
A163: 8 | B163: WAR | C163: Yes | D163: No | E163: Unknown | F163: 135960 | G163: 6
A164: 2 | B164: LUC | C164: Yes | D164: No | E164: Other Object | F164: 100815 | G164: 4
A165: 4 | B165: SUM | C165: Yes | D165: No | E165: Rear End | F165: 289052239 | G165: 13240
A166: 2 | B166: FUL | C166: Yes | D166: No | E166: Other Object | F166: 52800 | G166: 5
A167: 10 | B167: MOE | C167: Yes | D167: No | E167: Other Non-Collision | F167: 57420 | G167: 2
A168: 11 | B168: TUS | C168: No | D168: No | E168: Other Non-Vehicle | F168: 69135 | G168: 1
A169: 6 | B169: FAY | C169: Yes | D169: Yes | E169: Overturning | F169: 10560 | G169: 1
A170: 6 | B170: MRW | C170: Yes | D170: Yes | E170: Overturning | F170: 126555 | G170: 3
A171: 7 | B171: MOT | C171: Yes | D171: No | E171: Pedestrian | F171: 1789303 | G171: 16
A172: 10 | B172: HOC | C172: Yes | D172: No | E172: Angle | F172: 10560 | G172: 1
A173: 7 | B173: CLA | C173: Yes | D173: Yes | E173: Other Non-Collision | F173: 10560 | G173: 1
A174: 4 | B174: SUM | C174: Yes | D174: Yes | E174: Right Turn | F174: 31680 | G174: 3
A175: 1 | B175: HAN | C175: Yes | D175: Yes | E175: Other Object | F175: 363660 | G175: 31
A176: 8 | B176: WAR | C176: Yes | D176: Yes | E176: Pedestrian | F176: 531404 | G176: 2
A177: 3 | B177: CRA | C177: No | D177: No | E177: Backing | F177: 1259983 | G177: 24
A178: 12 | B178: CUY | C178: Yes | D178: Yes | E178: Other Non-Collision | F178: 14432026 | G178: 390
A179: 4 | B179: TRU | C179: No | D179: No | E179: Angle | F179: 21176860 | G179: 373
A180: 10 | B180: GAL | C180: No | D180: No | E180: Pedestrian | F180: 1533327 | G180: 5
A181: 9 | B181: JAC | C181: Yes | D181: No | E181: Unknown | F181: 116160 | G181: 11
A182: 1 | B182: HAN | C182: No | D182: Yes | E182: Rear End | F182: 3643616 | G182: 68
A183: 9 | B183: JAC | C183: No | D183: No | E183: Rear End | F183: 6678712 | G183: 99
A184: 4 | B184: POR | C184: No | D184: No | E184: Right Turn | F184: 1903049 | G184: 64
A185: 3 | B185: WAY | C185: No | D185: Yes | E185: Animal | F185: 1046100 | G185: 70
A186: 11 | B186: COL | C186: Yes | D186: Yes | E186: Parked Vehicle | F186: 67980 | G186: 3
A187: 8 | B187: WAR | C187: No | D187: No | E187: Sideswipe - Meeting | F187: 10560 | G187: 1
A188: 8 | B188: GRE | C188: Yes | D188: Yes | E188: Rear End | F188: 236775 | G188: 10
A189: 11 | B189: COL | C189: Yes | D189: No | E189: Angle | F189: 4211173 | G189: 128
A190: 11 | B190: COL | C190: Yes | D190: No | E190: Sideswipe - Passing | F190: 254430 | G190: 13
A191: 8 | B191: HAM | C191: No | D191: Yes | E191: Animal | F191: 116160 | G191: 11
A192: 2 | B192: LUC | C192: Yes | D192: No | E192: Pedestrian | F192: 2459576 | G192: 14
A193: 12 | B193: GEA | C193: Yes | D193: No | E193: Unknown | F193: 31680 | G193: 3
A194: 3 | B194: ERI | C194: Yes | D194: Yes | E194: Pedestrian | F194: 484544 | G194: 1
A195: 8 | B195: WAR | C195: Yes | D195: Yes | E195: Backing | F195: 95040 | G195: 9
A196: 3 | B196: HUR | C196: Yes | D196: No | E196: Parked Vehicle | F196: 31680 | G196: 3
A197: 4 | B197: STA | C197: Yes | D197: No | E197: Pedalcycles | F197: 20405266 | G197: 153
A198: 9 | B198: SCI | C198: No | D198: No | E198: Angle | F198: 15736480 | G198: 230
A199: 5 | B199: MUS | C199: Yes | D199: Yes | E199: Fixed Object | F199: 10560 | G199: 1
A200: 4 | B200: ATB | C200: Yes | D200: No | E200: Other Non-Collision | F200: 2622327 | G200: 50
... 8264 more rows

Sheet Import (hidden)
A1: Application ID: | C1: =IF('Safety Application'!A115="","Not Assigned",'Safety Application'!A115) -> 202403D08-01
A4: General Application Data
A5: https://extranet.dot.state.oh.us/divisions/Planning/plan/HSIP_applications/Lists/AppData/ImportView.aspx
A6: Title | B6: Cycle | C6: AppID | D6: District | E6: CountyCd | F6: Sponsor | G6: Project Name | H6: PID | I6: ProjectManager | J6: PM_Phone | K6: PM_Email | L6: Applicant_Name | M6: Applicant_Title | N6: Applicant_Phone | O6: ApplicationDt | P6: RouteNbr | Q6: RouteName | R6: Blog | S6: Elog | T6: FolderPath
A7: =C7 -> 202403D08-01 | B7: =LEFT(C7,6) -> 202403 | C7: =C1 -> 202403D08-01 | D7: ='Safety Application'!C10 -> 8 | E7: =LEFT('Safety Application'!H10,3) -> WAR | F7: =IF('Safety Application'!D2="","",'Safety Application'!D2) -> ODOT D8 | G7: =IF('Safety Application'!D3="","",'Safety Application'!D3) -> US-22 & Old 3C | H7: =IF('Safety Application'!D4="","",'Safety Application'!D4) -> 121423 | I7: =IF('Safety Application'!D5="","",'Safety Application'!D5) -> Alex Genbauffe | J7: =IF('Safety Application'!D6="","",'Safety Application'!D6) -> 5139336712 | K7: =IF('Safety Application'!D7="","",'Safety Application'!D7) -> alexander.genbauffe@dot.ohio.gov | L7: =IF('Safety Application'!A106="","",'Safety Application'!A106) -> Alex Genbauffe | M7: =IF('Safety Application'!F106="","",'Safety Application'!F106) -> Traffic Studies Engineer | N7: ='Safety Application'!I106 -> 5139336712 | O7: =IF('Safety Application'!I108="","",MONTH('Safety Application'!I108)&"/"&DAY('Safety Application'!I108)&"/"&YEAR('Safety Application'!I108)) -> 3/29/2024 | P7: ='Safety Application'!C11 -> US-22R | Q7: ='Safety Application'!H11 -> US-22 | R7: ='Safety Application'!C12 -> 3.63 | S7: ='Safety Application'!H12 -> 3.63 | T7: =IF(LEFT('Safety Application'!A117,1)="\",'Safety Application'!A117,"\\itcfs007.dot.state.oh.us\odrive"&MID('Safety Application'!A117,FIND("\",'Safety Application'!A117,1),100)) -> \\itcfs007.dot.state.oh.us\odrive\SAFETY\D08\SAFETY APPLICATIONS\202403 Applications\202403D08-01 (WAR-22-3.62 Old 3C)
A10: Project Priority
A11: https://extranet.dot.state.oh.us/divisions/Planning/plan/HSIP_applications/Lists/PriorityInfo/ImportView.aspx
A12: AppID | B12: PriorityText
A13: =C1 -> 202403D08-01 | B13: =IF('Safety Application'!A22="","",'Safety Application'!A22) -> PID 101154 feasibility study was completed in 2018 which identified a number of projects along US-22- including widening to 4/5 lanes, left turn lanes, roundabouts, and other recommendations. District 8 has long wanted to install a left turn lane here due to EB US-22 rear end collisions. However, due to a structure that would need widened, that has been cost prohibitive in the past. D8 installed "no left turn" signs in 2019 to reduce these collisions, which has helped some but there are still rear end collisions occuring, with injuries. The bridge in question now needs replaced due to condition, so this is a great opportunity to install the left turn lane recommended in the 2018 feasibililty study. District will cover Design and replacement "in-kind" costs, while the Safety request is for widening of the bridge, and roadway work.
A16: Application Summary of Crash Patterns and Recommended Countermeasures
A17: https://extranet.dot.state.oh.us/divisions/Planning/plan/HSIP_applications/Lists/CrashPatterns/ImportView.aspx
A18: AppID | B18: SummaryText | C18: RecCountermeasure
A19: =A13 -> 202403D08-01 | B19: ='Safety Application'!A18 -> From 2014-2017 there were 24 crashes at the intersection with 25% injuries. 14 crashes were EB rear end collisions (21% injuries). In 2019, District installed peak hour left turn restrictions (6-9am, 4-6pm), and from 2020-2023 there have been 20 crashes with 32% injuries and one fatality. 5 crashes were EB rear ends, with 60% injuries. | C19: ='Safety Application'!A20 -> Install EB left turn lane on US-22.
A22: Application Crash Data
A23: https://extranet.dot.state.oh.us/divisions/Planning/plan/HSIP_applications/Lists/CrashData/ImportView.aspx
A24: AppID | B24: Pred_Ex_KA | C24: Pred_Ex_B | D24: Pred_Ex_C | E24: Pred_Ex_O | F24: Exp_Ex_KA | G24: Exp_Ex_B | H24: Exp_Ex_C | I24: Exp_Ex_O | J24: PSI_KA | K24: PSI_B | L24: PSI_C | M24: PSI_O | N24: Prop_Type | O24: Prop_KA | P24: Prop_B | Q24: Prop_C | R24: Prop_O | S24: Obs_KA | T24: Obs_B | U24: Obs_C | V24: Obs_O | W24: Obs_People_K | X24: Obs_People_A | Y24: Obs_People_B | Z24: Obs_People_C
A25: =A19 -> 202403D08-01 | B25: ='Safety Application'!F26 -> 0.0395 | C25: ='Safety Application'!G26 -> 0.1653 | D25: ='Safety Application'!H26 -> 0.2235 | E25: ='Safety Application'!I26 -> 0.8769 | F25: ='Safety Application'!F27 -> 0.062 | G25: ='Safety Application'!G27 -> 0.2719 | H25: ='Safety Application'!H27 -> 0.3774 | I25: ='Safety Application'!I27 -> 1.7742 | J25: ='Safety Application'!F28 -> 0.0225 | K25: ='Safety Application'!G28 -> 0.1066 | L25: ='Safety Application'!H28 -> 0.1539 | M25: ='Safety Application'!I28 -> 0.8973 | N25: =IF(ScoringCalculations!$AB$1="ECAT - Change in base SPF","Predicted","Expected") -> Expected | O25: ='Safety Application'!F29 -> 0.0415 | P25: ='Safety Application'!G29 -> 0.1822 | Q25: ='Safety Application'!H29 -> 0.2529 | R25: ='Safety Application'!I29 -> 1.1887 | S25: ='Safety Application'!F30 -> 0.25 | T25: ='Safety Application'!G30 -> 0.5 | U25: ='Safety Application'!H30 -> 1 | V25: ='Safety Application'!I30 -> 3.75 | W25: ='Safety Application'!F33 -> 0.25 | X25: ='Safety Application'!G33 -> 0 | Y25: ='Safety Application'!H33 -> 1 | Z25: ='Safety Application'!I33 -> 1.25
A28: Application Scoring
A29: https://extranet.dot.state.oh.us/divisions/Planning/plan/HSIP_applications/Lists/AppScoring/ImportView.aspx
A30: AppID | B30: Expected_Value | C30: Expected_Points | D30: ObservedFSI_Value | E30: ObservedFSI_Points | F30: PercPSI_Value | G30: PercPSI_Points | H30: RSI_Value | I30: RSI_Points | J30: EPDO_Value | K30: EPDO_Points | L30: VCRatio_Value | M30: VCRatio_Points | N30: BCRatio_Value | O30: BCRatio_Points | P30: FundRequest_Value | Q30: FundRequest_Points | R30: LocEquity_Value | S30: LocEquity_Points | T30: BCRatio_Safety_Value | U30: NetBenefit | V30: NetPV_Project | W30: NetPV_Safety
A31: =A25 -> 202403D08-01 | D31: ='Safety Application'!H37 -> 0.05 | E31: ='Safety Application'!I37 -> 10 | F31: ='Safety Application'!H38 -> 0.4739 | G31: ='Safety Application'!I38 -> 20 | H31: ='Safety Application'!H39 -> 30611.93 | I31: ='Safety Application'!I39 -> 10 | J31: ='Safety Application'!H40 -> 3.24 | K31: ='Safety Application'!I40 -> 10 | N31: ='Safety Application'!I93 -> 0.18 | R31: ='Safety Application'!H41 -> 0.0001 | S31: ='Safety Application'!I41 -> 0 | T31: ='Safety Application'!I94 -> 0.18 | U31: ='Safety Application'!I92 -> -1561329.19 | V31: ='Safety Application'!E92 -> 1905000 | W31: ='Safety Application'!E93 -> 343670.81
A34: Strategic Highway Safety Plan
A35: https://extranet.dot.state.oh.us/divisions/Planning/plan/HSIP_applications/Lists/SHSP/ImportView.aspx
A36: AppID | B36: Functional Class | C36: MajAADT | D36: OhioEmpArea | E36: OhioEmpSub | F36: FHWAEmpArea | G36: FHWA_ImprovCat | H36: FHWA_ImprovSubCat
A37: =A31 -> 202403D08-01 | B37: ='Safety Application'!D48 -> 3 - Other Principal Arterial Roadway | C37: ='Safety Application'!D49 -> 20000 | D37: ='Safety Application'!E54 -> Serious Crash Types | E37: ='Safety Application'!E55 -> Intersection | F37: ='Safety Application'!E56 -> Improving the design and operation of highway intersections | G37: ='Safety Application'!E57 -> Intersection geometry | H37: ='Safety Application'!E58 -> Auxiliary lanes - add left-turn lane
A40: Application Work Locations
A41: https://extranet.dot.state.oh.us/divisions/Planning/plan/HSIP_applications/Lists/WorkLocations/ImportView.aspx
A42: RouteID | B42: AppID | C42: Location ID | D42: NLFID | E42: Begin Logpoint | F42: End Logpoint | G42: startLatitude | H42: startLongitude | I42: endLatitude | J42: endLongitude | K42: Termini
A43: =IF(D43="","",MID(D43,5,2)&"-"&IFERROR(MID(D43,7,5)*1,MID(D43,7,5))&IF(LEFT(D43,1)="S",IF(RIGHT(D43,2)="*C","",MID(D43,13,1)),IF(RIGHT(D43,3)="**C","",MID(D43,12,1)))) -> US-22 | B43: =IF(C43="","",$A$37) -> 202403D08-01 | C43: =IF(D43="","",1) -> 1 | D43: =IF('Safety Application'!A62=0,"",'Safety Application'!A62) -> SWARUS00022**C | E43: =IF(D43="","",'Safety Application'!C62) -> 3.63 | F43: =IF(D43="","",'Safety Application'!D62) -> 3.63 | G43: =IF(D43="","",'Safety Application'!E62) -> 39.3244978 | H43: =IF(D43="","",'Safety Application'!F62) -> -84.2457443 | I43: =IF(D43="","",'Safety Application'!AA62) -> 0 | J43: =IF(D43="","",'Safety Application'!AB62) -> 0 | K43: =IF(D43="","",'Safety Application'!G62) -> US-22 & Old 3C.
A44: =IF(D44="","",MID(D44,5,2)&"-"&IFERROR(MID(D44,7,5)*1,MID(D44,7,5))&IF(LEFT(D44,1)="S",IF(RIGHT(D44,2)="*C","",MID(D44,13,1)),IF(RIGHT(D44,3)="**C","",MID(D44,12,1)))) ->  | B44: =IF(C44="","",$A$37) ->  | C44: =IF(D44="","",C43+1) ->  | D44: =IF('Safety Application'!A63=0,"",'Safety Application'!A63) ->  | E44: =IF(D44="","",'Safety Application'!C63) ->  | F44: =IF(D44="","",'Safety Application'!D63) ->  | G44: =IF(D44="","",'Safety Application'!E63) ->  | H44: =IF(D44="","",'Safety Application'!F63) ->  | K44: =IF(D44="","",'Safety Application'!G63) -> 
C45: =IF(D45="","",C44+1) ->  | D45: =IF('Safety Application'!A64=0,"",'Safety Application'!A64) ->  | E45: =IF(D45="","",'Safety Application'!C64) ->  | F45: =IF(D45="","",'Safety Application'!D64) ->  | G45: =IF(D45="","",'Safety Application'!E64) ->  | H45: =IF(D45="","",'Safety Application'!F64) ->  | K45: =IF(D45="","",'Safety Application'!G64) -> 
D46: =IF('Safety Application'!A65=0,"",'Safety Application'!A65) ->  | E46: =IF(D46="","",'Safety Application'!C65) ->  | F46: =IF(D46="","",'Safety Application'!D65) ->  | G46: =IF(D46="","",'Safety Application'!E65) ->  | H46: =IF(D46="","",'Safety Application'!F65) ->  | K46: =IF(D46="","",'Safety Application'!G65) -> 
D47: =IF('Safety Application'!A66=0,"",'Safety Application'!A66) ->  | E47: =IF(D47="","",'Safety Application'!C66) ->  | F47: =IF(D47="","",'Safety Application'!D66) ->  | G47: =IF(D47="","",'Safety Application'!E66) ->  | H47: =IF(D47="","",'Safety Application'!F66) ->  | K47: =IF(D47="","",'Safety Application'!G66) -> 
D48: =IF('Safety Application'!A67=0,"",'Safety Application'!A67) ->  | E48: =IF(D48="","",'Safety Application'!C67) ->  | F48: =IF(D48="","",'Safety Application'!D67) ->  | G48: =IF(D48="","",'Safety Application'!E67) ->  | H48: =IF(D48="","",'Safety Application'!F67) ->  | K48: =IF(D48="","",'Safety Application'!G67) -> 
D49: =IF('Safety Application'!A68=0,"",'Safety Application'!A68) ->  | E49: =IF(D49="","",'Safety Application'!C68) ->  | F49: =IF(D49="","",'Safety Application'!D68) ->  | G49: =IF(D49="","",'Safety Application'!E68) ->  | H49: =IF(D49="","",'Safety Application'!F68) ->  | K49: =IF(D49="","",'Safety Application'!G68) -> 
D50: =IF('Safety Application'!A69=0,"",'Safety Application'!A69) ->  | E50: =IF(D50="","",'Safety Application'!C69) ->  | F50: =IF(D50="","",'Safety Application'!D69) ->  | G50: =IF(D50="","",'Safety Application'!E69) ->  | H50: =IF(D50="","",'Safety Application'!F69) ->  | K50: =IF(D50="","",'Safety Application'!G69) -> 
D51: =IF('Safety Application'!A70=0,"",'Safety Application'!A70) ->  | E51: =IF(D51="","",'Safety Application'!C70) ->  | F51: =IF(D51="","",'Safety Application'!D70) ->  | G51: =IF(D51="","",'Safety Application'!E70) ->  | H51: =IF(D51="","",'Safety Application'!F70) ->  | K51: =IF(D51="","",'Safety Application'!G70) -> 
D52: =IF('Safety Application'!A71=0,"",'Safety Application'!A71) ->  | E52: =IF(D52="","",'Safety Application'!C71) ->  | F52: =IF(D52="","",'Safety Application'!D71) ->  | G52: =IF(D52="","",'Safety Application'!E71) ->  | H52: =IF(D52="","",'Safety Application'!F71) ->  | K52: =IF(D52="","",'Safety Application'!G71) -> 
A54: Project Funding
A55: https://extranet.dot.state.oh.us/divisions/Planning/plan/HSIP_applications/Lists/Funding/ImportView.aspx
A56: AppID | B56: FY_SafetyStudy | C56: FY_IMS | D56: FY_PE_Enviro | E56: FY_PE_Design | F56: FY_ROW | G56: FY_Const | H56: NewSafety_AMT_SafetyStudy | I56: NewSafety_AMT_IMS | J56: NewSafety_AMT_PE_Enviro | K56: NewSafety_AMT_PE_Design | L56: NewSafety_AMT_ROW | M56: NewSafety_AMT_Const | N56: PrevSafety_AMT_SafetyStudy | O56: PrevSafety_AMT_IMS | P56: PrevSafety_AMT_PE_Enviro | Q56: PrevSafety_AMT_PE_Design | R56: PrevSafety_AMT_ROW | S56: PrevSafety_AMT_Const | T56: Sponsor_AMT_SafetyStudy | U56: Sponsor_AMT_IMS | V56: Sponsor_AMT_PE_Enviro | W56: Sponsor_AMT_PE_Design | X56: Sponsor_AMT_ROW | Y56: Sponsor_AMT_Const | Z56: Alt1_Source | AA56: Alt1_AMT_SafetyStudy | AB56: Alt1_AMT_IMS | AC56: Alt1_AMT_PE_Enviro | AD56: Alt1_AMT_PE_Design | AE56: Alt1_AMT_ROW | AF56: Alt1_AMT_Const | AG56: Alt2_Source | AH56: Alt2_AMT_SafetyStudy | AI56: Alt2_AMT_IMS | AJ56: Alt2_AMT_PE_Enviro | AK56: Alt2_AMT_PE_Design | AL56: Alt2_AMT_ROW | AM56: Alt2_AMT_Const | AN56: Alt3_Source | AO56: Alt3_AMT_SafetyStudy | AP56: Alt3_AMT_IMS | AQ56: Alt3_AMT_PE_Enviro | AR56: Alt3_AMT_PE_Design | AS56: Alt3_AMT_ROW | AT56: Alt3_AMT_Const | AU56: Alt4_Source | AV56: Alt4_AMT_SafetyStudy | AW56: Alt4_AMT_IMS | AX56: Alt4_AMT_PE_Enviro | AY56: Alt4_AMT_PE_Design | AZ56: Alt4_AMT_ROW | BA56: Alt4_AMT_Const | BB56: Alt5_Source | BC56: Alt5_AMT_SafetyStudy | BD56: Alt5_AMT_IMS | BE56: Alt5_AMT_PE_Enviro | BF56: Alt5_AMT_PE_Design | BG56: Alt5_AMT_ROW | BH56: Alt5_AMT_Const | BI56: Alt6_Source | BJ56: Alt6_AMT_SafetyStudy | BK56: Alt6_AMT_IMS | BL56: Alt6_AMT_PE_Enviro | BM56: Alt6_AMT_PE_Design | BN56: Alt6_AMT_ROW | BO56: Alt6_AMT_Const | BP56: Alt7_Source | BQ56: Alt7_AMT_SafetyStudy | BR56: Alt7_AMT_IMS | BS56: Alt7_AMT_PE_Enviro | BT56: Alt7_AMT_PE_Design | BU56: Alt7_AMT_ROW | BV56: Alt7_AMT_Const | BW56: AddtlDetails
A57: =A37 -> 202403D08-01 | B57: =IF('Safety Application'!D75=0,"",'Safety Application'!D75) -> 2017 | C57: =IF('Safety Application'!E75=0,"",'Safety Application'!E75) ->  | D57: =IF('Safety Application'!F75=0,"",'Safety Application'!F75) -> 2025 | E57: =IF('Safety Application'!G75=0,"",'Safety Application'!G75) -> 2026 | F57: =IF('Safety Application'!H75=0,"",'Safety Application'!H75) -> 2028 | G57: =IF('Safety Application'!I75=0,"",'Safety Application'!I75) -> 2029 | H57: =IF('Safety Application'!D78=0,"",'Safety Application'!D78) ->  | I57: =IF('Safety Application'!E78=0,"",'Safety Application'!E78) ->  | J57: =IF('Safety Application'!F78=0,"",'Safety Application'!F78) ->  | K57: =IF('Safety Application'!G78=0,"",'Safety Application'!G78) ->  | L57: =IF('Safety Application'!H78=0,"",'Safety Application'!H78) -> 100000 | M57: =IF('Safety Application'!I78=0,"",'Safety Application'!I78) -> 1805000 | N57: =IF('Safety Application'!D77=0,"",'Safety Application'!D77) ->  | O57: =IF('Safety Application'!E77=0,"",'Safety Application'!E77) ->  | P57: =IF('Safety Application'!F77=0,"",'Safety Application'!F77) ->  | Q57: =IF('Safety Application'!G77=0,"",'Safety Application'!G77) ->  | R57: =IF('Safety Application'!H77=0,"",'Safety Application'!H77) ->  | S57: =IF('Safety Application'!I77=0,"",'Safety Application'!I77) ->  | T57: =IF('Safety Application'!D79=0,"",'Safety Application'!D79) -> 283459 | U57: =IF('Safety Application'!E79=0,"",'Safety Application'!E79) ->  | V57: =IF('Safety Application'!F79=0,"",'Safety Application'!F79) -> 333333 | W57: =IF('Safety Application'!G79=0,"",'Safety Application'!G79) -> 166667 | X57: =IF('Safety Application'!H79=0,"",'Safety Application'!H79) ->  | Y57: =IF('Safety Application'!I79=0,"",'Safety Application'!I79) -> 3579000 | Z57: =IF('Safety Application'!A80=0,"",'Safety Application'!A80) ->  | AA57: =IF('Safety Application'!D80=0,"",'Safety Application'!D80) ->  | AB57: =IF('Safety Application'!E80=0,"",'Safety Application'!E80) ->  | AC57: =IF('Safety Application'!F80=0,"",'Safety Application'!F80) ->  | AD57: =IF('Safety Application'!G80=0,"",'Safety Application'!G80) ->  | AE57: =IF('Safety Application'!H80=0,"",'Safety Application'!H80) ->  | AF57: =IF('Safety Application'!I80=0,"",'Safety Application'!I80) ->  | AG57: =IF('Safety Application'!A81=0,"",'Safety Application'!A81) ->  | AH57: =IF('Safety Application'!D81=0,"",'Safety Application'!D81) ->  | AI57: =IF('Safety Application'!E81=0,"",'Safety Application'!E81) ->  | AJ57: =IF('Safety Application'!F81=0,"",'Safety Application'!F81) ->  | AK57: =IF('Safety Application'!G81=0,"",'Safety Application'!G81) ->  | AL57: =IF('Safety Application'!H81=0,"",'Safety Application'!H81) ->  | AM57: =IF('Safety Application'!I81=0,"",'Safety Application'!I81) ->  | AN57: =IF('Safety Application'!A82=0,"",'Safety Application'!A82) ->  | AO57: =IF('Safety Application'!D82=0,"",'Safety Application'!D82) ->  | AP57: =IF('Safety Application'!E82=0,"",'Safety Application'!E82) ->  | AQ57: =IF('Safety Application'!F82=0,"",'Safety Application'!F82) ->  | AR57: =IF('Safety Application'!G82=0,"",'Safety Application'!G82) ->  | AS57: =IF('Safety Application'!H82=0,"",'Safety Application'!H82) ->  | AT57: =IF('Safety Application'!I82=0,"",'Safety Application'!I82) ->  | AU57: =IF('Safety Application'!A83=0,"",'Safety Application'!A83) ->  | AV57: =IF('Safety Application'!D83=0,"",'Safety Application'!D83) ->  | AW57: =IF('Safety Application'!E83=0,"",'Safety Application'!E83) ->  | AX57: =IF('Safety Application'!F83=0,"",'Safety Application'!F83) ->  | AY57: =IF('Safety Application'!G83=0,"",'Safety Application'!G83) ->  | AZ57: =IF('Safety Application'!H83=0,"",'Safety Application'!H83) ->  | BA57: =IF('Safety Application'!I83=0,"",'Safety Application'!I83) ->  | BB57: =IF('Safety Application'!A84=0,"",'Safety Application'!A84) ->  | BC57: =IF('Safety Application'!D84=0,"",'Safety Application'!D84) ->  | BD57: =IF('Safety Application'!E84=0,"",'Safety Application'!E84) ->  | BE57: =IF('Safety Application'!F84=0,"",'Safety Application'!F84) ->  | BF57: =IF('Safety Application'!G84=0,"",'Safety Application'!G84) ->  | BG57: =IF('Safety Application'!H84=0,"",'Safety Application'!H84) ->  | BH57: =IF('Safety Application'!I84=0,"",'Safety Application'!I84) ->  | BI57: =IF('Safety Application'!A85=0,"",'Safety Application'!A85) ->  | BJ57: =IF('Safety Application'!D85=0,"",'Safety Application'!D85) ->  | BK57: =IF('Safety Application'!E85=0,"",'Safety Application'!E85) ->  | BL57: =IF('Safety Application'!F85=0,"",'Safety Application'!F85) ->  | BM57: =IF('Safety Application'!G85=0,"",'Safety Application'!G85) ->  | BN57: =IF('Safety Application'!H85=0,"",'Safety Application'!H85) ->  | BO57: =IF('Safety Application'!I85=0,"",'Safety Application'!I85) ->  | BP57: =IF('Safety Application'!A86=0,"",'Safety Application'!A86) ->  | BQ57: =IF('Safety Application'!D86=0,"",'Safety Application'!D86) ->  | BR57: =IF('Safety Application'!E86=0,"",'Safety Application'!E86) ->  | BS57: =IF('Safety Application'!F86=0,"",'Safety Application'!F86) ->  | BT57: =IF('Safety Application'!G86=0,"",'Safety Application'!G86) ->  | BU57: =IF('Safety Application'!H86=0,"",'Safety Application'!H86) ->  | BV57: =IF('Safety Application'!I86=0,"",'Safety Application'!I86) ->  | BW57: =IF('Safety Application'!A89=0,"",'Safety Application'!A89) -> District to cover design costs. PID 101154 feasibility study was completed in 2018 which identified a number of projects along US-22- including widening to 4/5 lanes, left turn lanes, roundabouts, and other recommendations. District 8 has long wanted to install a left turn lane here due to EB US-22 rear end collisions. However, due to a structure that would need widened, that has been cost prohibitive in the past. D8 installed "no left turn" signs in 2019 to reduce these collisions, which has helped some but there are still rear end collisions occuring, with injuries. The bridge in question now needs replaced due to condition, so this is a great opportunity to install the left turn lane. District will cover Design and replacement "in-kind" costs, while the Safety request is for widening of the bridge, and roadway work.
A60: Project Development
A61: https://extranet.dot.state.oh.us/divisions/Planning/plan/HSIP_applications/Lists/ProjectDevelopment/ImportView.aspx
A62: AppID | B62: SafetyStudy_CompBy | C62: SafetyStudy_CompDt | D62: IMS_CompBy | E62: IMS__CompDt | F62: PE_Enviro_CompBy | G62: PE_Enviro_CompDt | H62: PE_Design_CompBy | I62: PE_Design_CompDt | J62: ROW_CompBy | K62: ROW_CompDt
A63: =A57 -> 202403D08-01 | B63: =IF('Safety Application'!E98=0,"",'Safety Application'!E98) -> Arcadis | C63: =IF('Safety Application'!H98="","",MONTH('Safety Application'!H98)&"/"&DAY('Safety Application'!H98)&"/"&YEAR('Safety Application'!H98)) -> 7/10/1905 | D63: =IF('Safety Application'!E99=0,"",'Safety Application'!E99) ->  | E63: =IF('Safety Application'!H99="","",MONTH('Safety Application'!H99)&"/"&DAY('Safety Application'!H99)&"/"&YEAR('Safety Application'!H99)) ->  | F63: =IF('Safety Application'!E100=0,"",'Safety Application'!E100) ->  | G63: =IF('Safety Application'!H100="","",MONTH('Safety Application'!H100)&"/"&DAY('Safety Application'!H100)&"/"&YEAR('Safety Application'!H100)) ->  | H63: =IF('Safety Application'!E101=0,"",'Safety Application'!E101) ->  | I63: =IF('Safety Application'!H101="","",MONTH('Safety Application'!H101)&"/"&DAY('Safety Application'!H101)&"/"&YEAR('Safety Application'!H101)) ->  | J63: =IF('Safety Application'!E102=0,"",'Safety Application'!E102) ->  | K63: =IF('Safety Application'!H102="","",MONTH('Safety Application'!H102)&"/"&DAY('Safety Application'!H102)&"/"&YEAR('Safety Application'!H102)) -> 
